COST_CENTRE,COST_CENTRE_DESCRIPTION,SERVICE,DIRECTORATE,SUBJECTIVE,SUBJECTIVE_DESCRIPTION,SUPPLIER_NAME,DESCRIPTION,VOUCHER_NUM,PAYMENT_DATE,LINE_AMOUNT,NET_PAID_AMOUNT,PAID_AMOUNT
600001,Corporate Properties,Natural Resources and Assets,Infrastructure and Planning,49002,Miscellaneous Expenditure,Fire Crest Fire Protection,Town Hall Wireless Fire Alarm System,2289224, 24/07/2018,"12,700.00","12,700.00","15,240.00"
600001,Corporate Properties,Natural Resources and Assets,Infrastructure and Planning,49002,Miscellaneous Expenditure,Fire Crest Fire Protection,Flights and accommodation for Fire Crest,2336932, 18/09/2018,"1,182.00","1,182.00","1,418.40"
600001,Corporate Properties,Natural Resources and Assets,Infrastructure and Planning,49002,Miscellaneous Expenditure,Davey & Gilbert Ltd,"Annual plant servicing
Six monthly legionella",2319296, 04/09/2018,726.59,726.59,871.91
600001,Corporate Properties,Natural Resources and Assets,Infrastructure and Planning,43532,Professional Fees - Other,Community 1st Cornwall Ltd,OPE Health and Social Care Integration,2286722, 17/07/2018,"9,606.80","9,606.80","11,528.16"
600001,Corporate Properties,Natural Resources and Assets,Infrastructure and Planning,73913,Other - Asbestos Work  [CHL],Allium Environmental Ltd,Annual Asbestos Reinspections,2328961, 11/09/2018,"2,376.00","2,376.00","2,851.20"
600001,Corporate Properties,Natural Resources and Assets,Infrastructure and Planning,43532,Professional Fees - Other,Allium Environmental Ltd,Asbestos Re-inspections,2328961, 11/09/2018,"-2,376.00","2,376.00","2,851.20"
600001,Corporate Properties,Natural Resources and Assets,Infrastructure and Planning,43532,Professional Fees - Other,Allium Environmental Ltd,Asbestos Re-inspections,2328961, 11/09/2018,"2,376.00","2,376.00","2,851.20"
600001,Corporate Properties,Natural Resources and Assets,Infrastructure and Planning,43600,Fire Risk Assessments,Fire Risk Consulting Ltd,Fire Risk Assessments,2326181, 30/08/2018,"1,380.00","1,380.00","1,656.00"
600001,Corporate Properties,Natural Resources and Assets,Infrastructure and Planning,22501,Rent,Duchy Of Cornwall,Rent for Carn Thomas Office,2342220, 20/09/2018,"1,150.00","1,150.00","1,150.00"
600001,Corporate Properties,Natural Resources and Assets,Infrastructure and Planning,49002,Miscellaneous Expenditure,Fire Crest Fire Protection,Final payment Wesleyan alarm installation,2289219, 24/07/2018,"3,398.50","3,398.50","4,078.20"
600001,Corporate Properties,Natural Resources and Assets,Infrastructure and Planning,43532,Professional Fees - Other,Community 1st Cornwall Ltd,OPE Health and Social Care Integration,2308345, 09/08/2018,"18,472.22","18,472.22","22,166.66"
600001,Corporate Properties,Natural Resources and Assets,Infrastructure and Planning,21109,R&M - Gas - Planned,Davey & Gilbert Ltd,Replace 2 x LPG changeover setup and hoses,2336489, 18/09/2018,661.45,661.45,793.74
600001,Corporate Properties,Natural Resources and Assets,Infrastructure and Planning,49002,Miscellaneous Expenditure,Davey & Gilbert Ltd,"Annual plant servicing
Six monthly legionella",2319298, 04/09/2018,657.95,657.95,789.54
600001,Corporate Properties,Natural Resources and Assets,Infrastructure and Planning,22001,Heating Oil,Sibleys Fuel & Marine Services,Town Hall- Heating oil for 2018,2284393, 02/08/2018,408,"3,468.45","3,788.47"
600001,Corporate Properties,Natural Resources and Assets,Infrastructure and Planning,22001,Heating Oil,Sibleys Fuel & Marine Services,Town Hall- Heating oil for 2018,2284393, 02/08/2018,-408,"3,468.45","3,788.47"
600001,Corporate Properties,Natural Resources and Assets,Infrastructure and Planning,22001,Heating Oil,Sibleys Fuel & Marine Services,Town Hall- Heating oil for 2018,2284393, 02/08/2018,825.47,"3,468.45","3,788.47"
600002,Public Conveniences,Natural Resources and Assets,Infrastructure and Planning,43532,Professional Fees - Other,REDACTED,Painting of St Martin's,2299421, 09/08/2018,749.78,749.78,749.78
600002,Public Conveniences,Natural Resources and Assets,Infrastructure and Planning,27001,Contract Cleaning,REDACTED,For Cleaning of Public Toilets on St Agnes - August 2018,2337995, 18/09/2018,796.25,796.25,796.25
600002,Public Conveniences,Natural Resources and Assets,Infrastructure and Planning,49002,Miscellaneous Expenditure,Edf Energy Plc,"Unmetered Supply, Street Lighting and public conveniences",2290992, 31/07/2018,500.84,500.84,601.3
600002,Public Conveniences,Natural Resources and Assets,Infrastructure and Planning,49002,Miscellaneous Expenditure,Edf Energy Plc,"Unmetered Supply, Street Lighting and public conveniences",2290992, 31/07/2018,-502.31,500.84,601.3
600002,Public Conveniences,Natural Resources and Assets,Infrastructure and Planning,49002,Miscellaneous Expenditure,Edf Energy Plc,"Unmetered Supply, Street Lighting and public conveniences",2290992, 31/07/2018,-1.47,500.84,601.3
600002,Public Conveniences,Natural Resources and Assets,Infrastructure and Planning,49002,Miscellaneous Expenditure,Edf Energy Plc,"Unmetered Supply, Street Lighting and public conveniences",2290992, 31/07/2018,1.47,500.84,601.3
600002,Public Conveniences,Natural Resources and Assets,Infrastructure and Planning,49002,Miscellaneous Expenditure,Edf Energy Plc,"Unmetered Supply, Street Lighting and public conveniences",2290992, 31/07/2018,502.31,500.84,601.3
600002,Public Conveniences,Natural Resources and Assets,Infrastructure and Planning,49002,Miscellaneous Expenditure,Edf Energy Plc,"Unmetered Supply, Street Lighting and public conveniences",2290992, 31/07/2018,-500.84,500.84,601.3
600002,Public Conveniences,Natural Resources and Assets,Infrastructure and Planning,49002,Miscellaneous Expenditure,Edf Energy Plc,"Unmetered Supply, Street Lighting and public conveniences",2290992, 31/07/2018,500.84,500.84,601.3
600002,Public Conveniences,Natural Resources and Assets,Infrastructure and Planning,27001,Contract Cleaning,REDACTED,For Cleaning the Public Toilets on St Agnes during June 2018,2282058, 12/07/2018,796.25,796.25,796.25
600002,Public Conveniences,Natural Resources and Assets,Infrastructure and Planning,27001,Contract Cleaning,REDACTED,For Cleaning of Public Toilets on St Agnes - July 2018,2318262, 23/08/2018,796.25,796.25,796.25
600010,Operational R & M Services,Operational Services,Infrastructure and Planning,31204,Derv Purchases,Sibleys Fuel & Marine Services,Fuel for Repair & Maintenance for 12 months - April 18 - March 19 inc,2313373, 04/09/2018,41.7,"1,587.48","1,844.84"
600010,Operational R & M Services,Operational Services,Infrastructure and Planning,31204,Derv Purchases,Sibleys Fuel & Marine Services,Fuel for Repair & Maintenance for 12 months - April 18 - March 19 inc,2313373, 04/09/2018,98.82,"1,587.48","1,844.84"
600010,Operational R & M Services,Operational Services,Infrastructure and Planning,31204,Derv Purchases,Sibleys Fuel & Marine Services,Fuel for Repair & Maintenance for 12 months - April 18 - March 19 inc,2313373, 04/09/2018,22.04,"1,587.48","1,844.84"
600010,Operational R & M Services,Operational Services,Infrastructure and Planning,31204,Derv Purchases,Sibleys Fuel & Marine Services,Fuel for Repair & Maintenance for 12 months - April 18 - March 19 inc,2313373, 04/09/2018,52.5,"1,587.48","1,844.84"
600010,Operational R & M Services,Operational Services,Infrastructure and Planning,31204,Derv Purchases,Sibleys Fuel & Marine Services,Fuel for Repair & Maintenance for 12 months - April 18 - March 19 inc,2313373, 04/09/2018,60.06,"1,587.48","1,844.84"
600010,Operational R & M Services,Operational Services,Infrastructure and Planning,31204,Derv Purchases,Sibleys Fuel & Marine Services,Fuel for Repair & Maintenance for 12 months - April 18 - March 19 inc,2313373, 04/09/2018,47.78,"1,587.48","1,844.84"
600010,Operational R & M Services,Operational Services,Infrastructure and Planning,31204,Derv Purchases,Sibleys Fuel & Marine Services,Fuel for Repair & Maintenance for 12 months - April 18 - March 19 inc,2313373, 04/09/2018,21.78,"1,587.48","1,844.84"
600010,Operational R & M Services,Operational Services,Infrastructure and Planning,31204,Derv Purchases,Sibleys Fuel & Marine Services,Fuel for Repair & Maintenance for 12 months - April 18 - March 19 inc,2313373, 04/09/2018,41.32,"1,587.48","1,844.84"
600010,Operational R & M Services,Operational Services,Infrastructure and Planning,31204,Derv Purchases,Sibleys Fuel & Marine Services,Fuel for Repair & Maintenance for 12 months - April 18 - March 19 inc,2313373, 04/09/2018,63.46,"1,587.48","1,844.84"
600010,Operational R & M Services,Operational Services,Infrastructure and Planning,49002,Miscellaneous Expenditure,REDACTED,Second hand vehicle Ford Transit Connect,2294188, 31/07/2018,"2,000.00","2,000.00","2,000.00"
600010,Operational R & M Services,Operational Services,Infrastructure and Planning,49002,Miscellaneous Expenditure,Scarab Sweepers Ltd,Scarab road sweeper parts,2343232, 20/09/2018,846.97,846.97,"1,016.36"
600010,Operational R & M Services,Operational Services,Infrastructure and Planning,49002,Miscellaneous Expenditure,Pfs (Helston) Ltd,Pump for St Agnes bore hole,2318963, 30/08/2018,536.12,536.12,643.34
600010,Operational R & M Services,Operational Services,Infrastructure and Planning,49002,Miscellaneous Expenditure,Instarmac Group Plc,Pot hole repair material spray and tape for mermaid car park sewage pipe repair,2295314, 09/08/2018,"1,697.52","1,697.52","2,037.02"
600010,Operational R & M Services,Operational Services,Infrastructure and Planning,31204,Derv Purchases,Sibleys Fuel & Marine Services,Fuel for Repair & Maintenance for 12 months - April 18 - March 19 inc,2284393, 02/08/2018,349.71,"3,468.45","3,788.47"
600013,Open Spaces & Beaches,Operational Services,Infrastructure and Planning,49002,Miscellaneous Expenditure,OMG Trading Ltd,Cricket Field on the Garrison,2286779, 17/07/2018,"1,347.00","1,347.00","1,616.40"
600020,Building Control,Planning and Development,Infrastructure and Planning,31505,Boat Hire,Tresco Estate,Jet boat 12.15 from St Mary's and Return,2286503, 17/07/2018,"3,524.25","3,524.25","3,524.25"
600020,Building Control,Planning and Development,Infrastructure and Planning,31505,Boat Hire,Tresco Estate,Jet boat 12.15 from St Mary's and Return,2286503, 17/07/2018,"-3,524.25","3,524.25","3,524.25"
600020,Building Control,Planning and Development,Infrastructure and Planning,31505,Boat Hire,Falcon Boating Ltd,Boat Trip,2275122, 17/07/2018,104,746,746
600020,Building Control,Planning and Development,Infrastructure and Planning,31505,Boat Hire,Tresco Estate,Jet boat 12.15 from St Mary's and Return,2331103, 13/09/2018,"-3,296.50","3,296.50","3,296.50"
600020,Building Control,Planning and Development,Infrastructure and Planning,31505,Boat Hire,Tresco Estate,Jet boat 12.15 from St Mary's and Return,2331103, 13/09/2018,"3,296.50","3,296.50","3,296.50"
600020,Building Control,Planning and Development,Infrastructure and Planning,49002,Miscellaneous Expenditure,Cornwall Council,Provision of building control services period 1st April to 30th June 2018.,2333732, 13/09/2018,"3,225.00","3,225.00","3,870.00"
600020,Building Control,Planning and Development,Infrastructure and Planning,31505,Boat Hire,Tresco Estate,Jet boat 12.15 from St Mary's and Return,2308254, 30/08/2018,"-4,001.75","4,001.75","4,001.75"
600020,Building Control,Planning and Development,Infrastructure and Planning,31505,Boat Hire,Tresco Estate,Jet boat 12.15 from St Mary's and Return,2308254, 30/08/2018,"4,001.75","4,001.75","4,001.75"
600021,Development Management,Planning and Development,Infrastructure and Planning,31505,Boat Hire,Tresco Estate,boat to St Martins on the 3rd of May. 10am leaving.,2254478, 10/07/2018,110,625,625
600021,Development Management,Planning and Development,Infrastructure and Planning,49002,Miscellaneous Expenditure,Esri (UK) Services Ltd,ArcGIS Desktop Basic (concurrent USE0 primary Maintenance,2331281, 11/09/2018,787,787,944.4
600022,Strategic Planning,Planning and Development,Infrastructure and Planning,49002,Miscellaneous Expenditure,Enfusion Ltd,"Isles of Scilly Local Plan Review 2015-2030
Additional task to prepare and meet with natural England 
Staff fees",2305368, 09/08/2018,930,930,"1,116.00"
600022,Strategic Planning,Planning and Development,Infrastructure and Planning,43505,Consultants - Other,Understanding Data Ltd,SHMA Update Work - Meeting with members and review of representation,2294321, 26/07/2018,750,750,750
600030,Fire & Rescue,Fire and Rescue,Infrastructure and Planning,25003,Fire Equipment,Amerex Fire International Ltd,"Amerex 20/04/18 - 31/03/19
LAFS Fire Extinguisher Equipment",2294945, 09/08/2018,756.15,756.15,907.38
600030,Fire & Rescue,Fire and Rescue,Infrastructure and Planning,49002,Miscellaneous Expenditure,Angus Fire Limited,Angus Fire Hoses + Equipment,2340651, 18/09/2018,"1,242.87","1,242.87","1,491.44"
600030,Fire & Rescue,Fire and Rescue,Infrastructure and Planning,49002,Miscellaneous Expenditure,Cornwall Council,Pension Fund - Recharge of Cost to cornwall pension fund for administration of the firefighter's pension schemes.,2333739, 13/09/2018,"1,476.50","1,476.50","1,476.50"
600030,Fire & Rescue,Fire and Rescue,Infrastructure and Planning,49002,Miscellaneous Expenditure,Angus Fire Limited,Fittings for fire pumps,2342171, 20/09/2018,688.04,688.04,825.65
600030,Fire & Rescue,Fire and Rescue,Infrastructure and Planning,12301,Training,REDACTED,Training for RFFS CAP699,2317390, 23/08/2018,"1,020.00","1,020.00","1,020.00"
600030,Fire & Rescue,Fire and Rescue,Infrastructure and Planning,43506,Professional Fees - Legal,Hymans Robertson LLP,for services provided in connection with isles of scilly fire and rescue service,2272239, 10/07/2018,"9,950.00","9,950.00","11,940.00"
600030,Fire & Rescue,Fire and Rescue,Infrastructure and Planning,31603,Other Public Transport,Falcon Boating Ltd,Falcon Boating - Yearly PO for Fire Service boats up to 31st March 2019,2332199, 20/09/2018,884,988,988
600031,Emergency Planning,Fire and Rescue,Infrastructure and Planning,49002,Miscellaneous Expenditure,Cornwall Council,Attendance of member of resilience and emergency management team on 23rd april 2018,2333730, 13/09/2018,569.8,569.8,569.8
600040,Waste Collection and Operations,Waste and Recycling,Infrastructure and Planning,49002,Miscellaneous Expenditure,Sibleys Fuel & Marine Services,Fuel for waste site vehicles,2313373, 04/09/2018,-24.55,"1,587.48","1,844.84"
600040,Waste Collection and Operations,Waste and Recycling,Infrastructure and Planning,49002,Miscellaneous Expenditure,Sibleys Fuel & Marine Services,Fuel for waste site vehicles,2313373, 04/09/2018,-75.58,"1,587.48","1,844.84"
600040,Waste Collection and Operations,Waste and Recycling,Infrastructure and Planning,49002,Miscellaneous Expenditure,Sibleys Fuel & Marine Services,Fuel for waste site vehicles,2313373, 04/09/2018,-24.68,"1,587.48","1,844.84"
600040,Waste Collection and Operations,Waste and Recycling,Infrastructure and Planning,49002,Miscellaneous Expenditure,Sibleys Fuel & Marine Services,Fuel for waste site vehicles,2313373, 04/09/2018,-79.36,"1,587.48","1,844.84"
600040,Waste Collection and Operations,Waste and Recycling,Infrastructure and Planning,49002,Miscellaneous Expenditure,Sibleys Fuel & Marine Services,Fuel for waste site vehicles,2313373, 04/09/2018,-82.64,"1,587.48","1,844.84"
600040,Waste Collection and Operations,Waste and Recycling,Infrastructure and Planning,49002,Miscellaneous Expenditure,Sibleys Fuel & Marine Services,Fuel for waste site vehicles,2313373, 04/09/2018,-24.69,"1,587.48","1,844.84"
600040,Waste Collection and Operations,Waste and Recycling,Infrastructure and Planning,49002,Miscellaneous Expenditure,Sibleys Fuel & Marine Services,Fuel for waste collection vehicles part 2,2313373, 04/09/2018,422.48,"1,587.48","1,844.84"
600040,Waste Collection and Operations,Waste and Recycling,Infrastructure and Planning,49002,Miscellaneous Expenditure,Sibleys Fuel & Marine Services,Fuel for waste site vehicles,2313373, 04/09/2018,-81.99,"1,587.48","1,844.84"
600040,Waste Collection and Operations,Waste and Recycling,Infrastructure and Planning,49002,Miscellaneous Expenditure,Sibleys Fuel & Marine Services,Fuel for waste site vehicles,2313373, 04/09/2018,-28.99,"1,587.48","1,844.84"
600040,Waste Collection and Operations,Waste and Recycling,Infrastructure and Planning,49002,Miscellaneous Expenditure,Sibleys Fuel & Marine Services,Fuel for waste site vehicles,2313373, 04/09/2018,81.99,"1,587.48","1,844.84"
600040,Waste Collection and Operations,Waste and Recycling,Infrastructure and Planning,49002,Miscellaneous Expenditure,Sibleys Fuel & Marine Services,Fuel for waste site vehicles,2313373, 04/09/2018,28.99,"1,587.48","1,844.84"
600040,Waste Collection and Operations,Waste and Recycling,Infrastructure and Planning,49002,Miscellaneous Expenditure,Sibleys Fuel & Marine Services,Fuel for waste site vehicles,2313373, 04/09/2018,24.55,"1,587.48","1,844.84"
600040,Waste Collection and Operations,Waste and Recycling,Infrastructure and Planning,49002,Miscellaneous Expenditure,Sibleys Fuel & Marine Services,Fuel for waste site vehicles,2313373, 04/09/2018,75.58,"1,587.48","1,844.84"
600040,Waste Collection and Operations,Waste and Recycling,Infrastructure and Planning,49002,Miscellaneous Expenditure,Sibleys Fuel & Marine Services,Fuel for waste site vehicles,2313373, 04/09/2018,24.68,"1,587.48","1,844.84"
600040,Waste Collection and Operations,Waste and Recycling,Infrastructure and Planning,49002,Miscellaneous Expenditure,Sibleys Fuel & Marine Services,Fuel for waste site vehicles,2313373, 04/09/2018,79.36,"1,587.48","1,844.84"
600040,Waste Collection and Operations,Waste and Recycling,Infrastructure and Planning,49002,Miscellaneous Expenditure,Sibleys Fuel & Marine Services,Fuel for waste site vehicles,2313373, 04/09/2018,82.64,"1,587.48","1,844.84"
600040,Waste Collection and Operations,Waste and Recycling,Infrastructure and Planning,49002,Miscellaneous Expenditure,Sibleys Fuel & Marine Services,Fuel for waste site vehicles,2313373, 04/09/2018,24.69,"1,587.48","1,844.84"
600040,Waste Collection and Operations,Waste and Recycling,Infrastructure and Planning,49002,Miscellaneous Expenditure,Weightron Bilanciai Ltd,Service contract for Weighbridge system,2279948, 17/07/2018,"4,934.25","4,934.25","5,921.10"
600040,Waste Collection and Operations,Waste and Recycling,Infrastructure and Planning,49002,Miscellaneous Expenditure,Leppitt Associates,"Environmental management system, Leppitt Associates",2335574, 11/09/2018,"2,300.00","2,300.00","2,760.00"
600040,Waste Collection and Operations,Waste and Recycling,Infrastructure and Planning,49002,Miscellaneous Expenditure,Jajo Automated software ltd,Control system electrical upgrade for the Black bag compactor by JAJO Automated software ltd,2310774, 14/08/2018,"2,280.00","2,280.00","2,736.00"
600040,Waste Collection and Operations,Waste and Recycling,Infrastructure and Planning,49002,Miscellaneous Expenditure,Wessex GS Ltd,Injector and seal kit for Twin Pack Refuse truck,2328952, 04/09/2018,599.8,599.8,719.76
600040,Waste Collection and Operations,Waste and Recycling,Infrastructure and Planning,49002,Miscellaneous Expenditure,Jajo Automated software ltd,GlassAgg machine relocation to main shed and re-fitted by JAJO automated software,2310770, 14/08/2018,"6,800.00","6,800.00","8,160.00"
600040,Waste Collection and Operations,Waste and Recycling,Infrastructure and Planning,49002,Miscellaneous Expenditure,Bryher Forge,Bryher waste management contract,2306842, 07/08/2018,875,875,875
600040,Waste Collection and Operations,Waste and Recycling,Infrastructure and Planning,49002,Miscellaneous Expenditure,Installation & Maintenance Services Limited,Inspection and delivery including return costs of driver for the new waste collection vehicle,2334679, 11/09/2018,936.5,936.5,"1,123.80"
600040,Waste Collection and Operations,Waste and Recycling,Infrastructure and Planning,49002,Miscellaneous Expenditure,Jajo Automated software ltd,Control system electrical upgrade for the DMR compactor by JAJO Automated software ltd,2310772, 14/08/2018,"6,264.00","6,264.00","7,516.80"
600040,Waste Collection and Operations,Waste and Recycling,Infrastructure and Planning,49002,Miscellaneous Expenditure,Polystar Plastics Ltd,"20,000 black bag heavy duty for the waste and recycling",2332215, 06/09/2018,"1,600.00","1,600.00","1,920.00"
600040,Waste Collection and Operations,Waste and Recycling,Infrastructure and Planning,49002,Miscellaneous Expenditure,Leppitt Associates,Leppitt assessment 10-12/09/2018 cotc/wamitab,2341778, 18/09/2018,"1,690.00","1,690.00","2,028.00"
600040,Waste Collection and Operations,Waste and Recycling,Infrastructure and Planning,49002,Miscellaneous Expenditure,Weightron Bilanciai Ltd,Computer software support for weighbridge,2316134, 21/08/2018,810.9,810.9,973.08
600040,Waste Collection and Operations,Waste and Recycling,Infrastructure and Planning,49002,Miscellaneous Expenditure,REDACTED,Green waste going for composting,2336889, 13/09/2018,"2,798.00","2,798.00","2,798.00"
600040,Waste Collection and Operations,Waste and Recycling,Infrastructure and Planning,49002,Miscellaneous Expenditure,REDACTED,Green waste going for composting,2337123, 18/09/2018,"2,423.00","2,423.00","2,423.00"
600040,Waste Collection and Operations,Waste and Recycling,Infrastructure and Planning,49002,Miscellaneous Expenditure,Natural Generation Ltd,3 x shipping containers purchased from Natural Generation,2299635, 31/07/2018,"3,000.00","3,000.00","3,600.00"
600040,Waste Collection and Operations,Waste and Recycling,Infrastructure and Planning,49002,Miscellaneous Expenditure,Wessex GS Ltd,Engineer to install new ignition barrel to waste vehicle( Wessex gs ltd),2282052, 24/07/2018,"1,077.97","1,077.97","1,293.56"
600040,Waste Collection and Operations,Waste and Recycling,Infrastructure and Planning,49002,Miscellaneous Expenditure,Bryher Forge,Bryher waste management contract,2330560, 04/09/2018,875,875,875
600040,Waste Collection and Operations,Waste and Recycling,Infrastructure and Planning,49002,Miscellaneous Expenditure,Bryher Forge,Bryher waste management contract,2343993, 25/09/2018,875,875,875
600040,Waste Collection and Operations,Waste and Recycling,Infrastructure and Planning,49002,Miscellaneous Expenditure,Leppitt Associates,Wamitab assessment 9-11th July 2018,2295033, 26/07/2018,"1,652.00","1,652.00","1,982.40"
600040,Waste Collection and Operations,Waste and Recycling,Infrastructure and Planning,12301,Training,Westcountry Training Services,B2 Fork lift Truck Training/ITSSAR Photo ID Cards,2275716, 03/07/2018,"1,695.00","1,695.00","2,034.00"
600040,Waste Collection and Operations,Waste and Recycling,Infrastructure and Planning,49002,Miscellaneous Expenditure,Sibleys Fuel & Marine Services,Fuel for waste site vehicles,2284393, 02/08/2018,736.96,"3,468.45","3,788.47"
600040,Waste Collection and Operations,Waste and Recycling,Infrastructure and Planning,49002,Miscellaneous Expenditure,Sibleys Fuel & Marine Services,Fuel for waste site vehicles,2284393, 02/08/2018,153.79,"3,468.45","3,788.47"
600040,Waste Collection and Operations,Waste and Recycling,Infrastructure and Planning,49002,Miscellaneous Expenditure,Sibleys Fuel & Marine Services,Fuel from Sibleys for Waste collection vehicles only,2284393, 02/08/2018,124.68,"3,468.45","3,788.47"
600040,Waste Collection and Operations,Waste and Recycling,Infrastructure and Planning,49002,Miscellaneous Expenditure,Essential Safety Wear Ltd,PPE for staff,2333607, 11/09/2018,978.88,978.88,"1,174.66"
600042,Waste Recycling (Code Closed),Waste and Recycling,Infrastructure and Planning,57069,Waste Disposal Contracts - Private Contractors,Wheal Alfred Metals Recycling Ltd,IOS Light Iron,2286501, 31/07/2018,-800,800,960
600042,Waste Recycling (Code Closed),Waste and Recycling,Infrastructure and Planning,57069,Waste Disposal Contracts - Private Contractors,Wheal Alfred Metals Recycling Ltd,IOS Light Iron,2286501, 31/07/2018,800,800,960
600042,Waste Recycling (Code Closed),Waste and Recycling,Infrastructure and Planning,57069,Waste Disposal Contracts - Private Contractors,Wheal Alfred Metals Recycling Ltd,IOS Light Iron,2286501, 31/07/2018,800,800,960
600042,Waste Recycling (Code Closed),Waste and Recycling,Infrastructure and Planning,22501,Rent,Duchy Of Cornwall,Rent for Moorwell Depot �A�,2342218, 20/09/2018,"1,687.50","1,687.50","1,687.50"
600042,Waste Recycling (Code Closed),Waste and Recycling,Infrastructure and Planning,46119,Haulage Costs,Isles Of Scilly Steamship Co,Waste Skip freight to PZ Month of May,2291799, 24/07/2018,"15,208.00","15,208.00","18,249.60"
600042,Waste Recycling (Code Closed),Waste and Recycling,Infrastructure and Planning,46119,Haulage Costs,Isles Of Scilly Steamship Co,Waste Skip freight to PZ Month of May,2291802, 24/07/2018,"11,386.91","11,386.91","13,664.30"
600042,Waste Recycling (Code Closed),Waste and Recycling,Infrastructure and Planning,49002,Miscellaneous Expenditure,Polystar Plastics Ltd,"Grey Bags (Commercial Waste bags), 18 x19x39 Grey Opaque (200/box) 8 rolls of 25 bags C-Folded Qty 10000bags 102/1000",2343181, 25/09/2018,"1,120.00","1,120.00","1,344.00"
600042,Waste Recycling (Code Closed),Waste and Recycling,Infrastructure and Planning,27006,Skip Costs,Viridor Waste Management Ltd,"8 YD Glass Skip, Porthmellon",2338864, 25/09/2018,"9,113.24","9,113.24","10,935.90"
600042,Waste Recycling (Code Closed),Waste and Recycling,Infrastructure and Planning,46119,Haulage Costs,Suez Recycling and Recovery UK Ltd (was Sita UK Ltd),Suez Waste and Recycling for July 2018,2328935, 20/09/2018,"25,872.50","25,872.50","31,047.00"
600042,Waste Recycling (Code Closed),Waste and Recycling,Infrastructure and Planning,46119,Haulage Costs,Isles Of Scilly Steamship Co,Freight Cost for Waste Skip.,2333740, 18/09/2018,"15,588.20","15,588.20","18,705.84"
600042,Waste Recycling (Code Closed),Waste and Recycling,Infrastructure and Planning,43506,Professional Fees - Legal,Mills & Reeve,Professional Charges,2279282, 17/07/2018,"9,245.00","9,245.00","11,094.00"
600042,Waste Recycling (Code Closed),Waste and Recycling,Infrastructure and Planning,43506,Professional Fees - Legal,Currie & Brown UK Ltd,Pre Contract as per email dated 23/02/2017,2285720, 19/07/2018,"11,400.00","11,400.00","13,680.00"
600042,Waste Recycling (Code Closed),Waste and Recycling,Infrastructure and Planning,31102,Vehicle Repair and Maintenance,Doerwheal,"Waste and Recycling - July
Engineering",2309069, 09/08/2018,555,555,555
600042,Waste Recycling (Code Closed),Waste and Recycling,Infrastructure and Planning,49002,Miscellaneous Expenditure,Aggreko Uk Ltd,Greenpower canopy,2309070, 23/08/2018,297.67,788.28,901.28
600042,Waste Recycling (Code Closed),Waste and Recycling,Infrastructure and Planning,49002,Miscellaneous Expenditure,Aggreko Uk Ltd,Greenpower canopy,2309070, 23/08/2018,490.61,788.28,901.28
600042,Waste Recycling (Code Closed),Waste and Recycling,Infrastructure and Planning,49002,Miscellaneous Expenditure,Aggreko Uk Ltd,Greenpower canopy,2309070, 23/08/2018,-788.28,788.28,901.28
600042,Waste Recycling (Code Closed),Waste and Recycling,Infrastructure and Planning,49002,Miscellaneous Expenditure,Aggreko Uk Ltd,Greenpower canopy,2309070, 23/08/2018,788.28,788.28,901.28
600042,Waste Recycling (Code Closed),Waste and Recycling,Infrastructure and Planning,43506,Professional Fees - Legal,Mills & Reeve,Provision of legal services relating to dispute,2337243, 27/09/2018,"2,428.60","2,428.60","2,914.32"
600042,Waste Recycling (Code Closed),Waste and Recycling,Infrastructure and Planning,31102,Vehicle Repair and Maintenance,Doerwheal,"Waste and Recycling - July
Engineering",2337080, 27/09/2018,"2,580.00","2,580.00","2,580.00"
600042,Waste Recycling (Code Closed),Waste and Recycling,Infrastructure and Planning,57069,Waste Disposal Contracts - Private Contractors,REDACTED,Disposal of Rubbish from St Agnes August 2018,2343229, 20/09/2018,750,750,900
600042,Waste Recycling (Code Closed),Waste and Recycling,Infrastructure and Planning,49002,Miscellaneous Expenditure,Creative Signs,24 Aluminium signs,2290804, 26/07/2018,650,650,780
600042,Waste Recycling (Code Closed),Waste and Recycling,Infrastructure and Planning,46119,Haulage Costs,Isles Of Scilly Steamship Co,Waste Skip freight to PZ Month of May-undercharge,2291800, 24/07/2018,773.09,773.09,927.71
600042,Waste Recycling (Code Closed),Waste and Recycling,Infrastructure and Planning,46119,Haulage Costs,Suez Recycling and Recovery UK Ltd (was Sita UK Ltd),Suez Collection and transportation of waste on the mainland-May 2018,2296169, 31/07/2018,"12,304.80","12,304.80","14,765.76"
600042,Waste Recycling (Code Closed),Waste and Recycling,Infrastructure and Planning,43506,Professional Fees - Legal,Mills & Reeve,Provision of legal services relating to dispute,2304099, 02/08/2018,"2,982.00","2,982.00","3,578.40"
600042,Waste Recycling (Code Closed),Waste and Recycling,Infrastructure and Planning,46119,Haulage Costs,Island Carriers,Island Carriers for July,2316142, 21/08/2018,"4,026.47","4,026.47","4,831.80"
600042,Waste Recycling (Code Closed),Waste and Recycling,Infrastructure and Planning,46119,Haulage Costs,Suez Recycling and Recovery UK Ltd (was Sita UK Ltd),Suez Waste Collection and transportation - June 2018,2296173, 31/07/2018,"26,110.80","26,110.80","31,332.96"
600042,Waste Recycling (Code Closed),Waste and Recycling,Infrastructure and Planning,46119,Haulage Costs,Isles Of Scilly Steamship Co,Waste Skip fabricated skip lifting frame,2291805, 24/07/2018,"-1,450.00","1,450.00","1,740.00"
600042,Waste Recycling (Code Closed),Waste and Recycling,Infrastructure and Planning,46119,Haulage Costs,Isles Of Scilly Steamship Co,Waste Skip fabricated skip lifting frame,2291805, 24/07/2018,"1,450.00","1,450.00","1,740.00"
600042,Waste Recycling (Code Closed),Waste and Recycling,Infrastructure and Planning,46119,Haulage Costs,Isles Of Scilly Steamship Co,Waste Skip fabricated skip lifting frame,2291805, 24/07/2018,"1,450.00","1,450.00","1,740.00"
600042,Waste Recycling (Code Closed),Waste and Recycling,Infrastructure and Planning,22501,Rent,Duchy Of Cornwall,Rent for Moorwell �B� Incinerator,2342182, 20/09/2018,881.85,881.85,881.85
600042,Waste Recycling (Code Closed),Waste and Recycling,Infrastructure and Planning,46119,Haulage Costs,Island Carriers,"Waste disposal, skip usage, off island collection",2305421, 07/08/2018,"3,606.98","3,615.14","4,338.16"
600042,Waste Recycling (Code Closed),Waste and Recycling,Infrastructure and Planning,46119,Haulage Costs,Island Carriers,"Waste disposal, skip usage, off island collection",2305421, 07/08/2018,"-3,606.96","3,615.14","4,338.16"
600042,Waste Recycling (Code Closed),Waste and Recycling,Infrastructure and Planning,46119,Haulage Costs,Island Carriers,"Waste disposal, skip usage, off island collection",2305421, 07/08/2018,"3,606.96","3,615.14","4,338.16"
600042,Waste Recycling (Code Closed),Waste and Recycling,Infrastructure and Planning,46119,Haulage Costs,Island Carriers,"Waste disposal, skip usage, off island collection",2305421, 07/08/2018,"-3,684.36","3,615.14","4,338.16"
600042,Waste Recycling (Code Closed),Waste and Recycling,Infrastructure and Planning,46119,Haulage Costs,Island Carriers,"Waste disposal, skip usage, off island collection",2305421, 07/08/2018,"3,684.36","3,615.14","4,338.16"
600042,Waste Recycling (Code Closed),Waste and Recycling,Infrastructure and Planning,49002,Miscellaneous Expenditure,Aggreko Uk Ltd,Greenpower canopy,2308819, 09/08/2018,558.88,558.88,670.66
600042,Waste Recycling (Code Closed),Waste and Recycling,Infrastructure and Planning,46119,Haulage Costs,REDACTED,Disposal of Rubbish from St Agnes in July,2313371, 16/08/2018,750,750,900
600042,Waste Recycling (Code Closed),Waste and Recycling,Infrastructure and Planning,46119,Haulage Costs,Island Carriers,Waste & Recycling Haulage for September 2018,2337876, 18/09/2018,"4,662.24","4,662.24","5,594.71"
600042,Waste Recycling (Code Closed),Waste and Recycling,Infrastructure and Planning,41315,Health & Safety Materials,UK Safety Store,Safety Signs,2326761, 30/08/2018,"1,244.98","1,244.98","1,493.98"
600042,Waste Recycling (Code Closed),Waste and Recycling,Infrastructure and Planning,46119,Haulage Costs,Island Carriers,Waste and recycling haulage month of June,2290765, 31/07/2018,"4,276.19","4,276.19","5,131.43"
600042,Waste Recycling (Code Closed),Waste and Recycling,Infrastructure and Planning,21110,R&M - Electrical - Planned,Evans Electricals,Moorwell Waste Site Earth Bonding,2310871, 14/08/2018,715,715,572
600050,Water & Sewerage,Operational Services,Infrastructure and Planning,49002,Miscellaneous Expenditure,Sibleys Fuel & Marine Services,Fuel,2313373, 04/09/2018,56.74,"1,587.48","1,844.84"
600050,Water & Sewerage,Operational Services,Infrastructure and Planning,49002,Miscellaneous Expenditure,Sibleys Fuel & Marine Services,Fuel,2313373, 04/09/2018,20.74,"1,587.48","1,844.84"
600050,Water & Sewerage,Operational Services,Infrastructure and Planning,49002,Miscellaneous Expenditure,Sibleys Fuel & Marine Services,Fuel,2313373, 04/09/2018,45.29,"1,587.48","1,844.84"
600050,Water & Sewerage,Operational Services,Infrastructure and Planning,49002,Miscellaneous Expenditure,Sibleys Fuel & Marine Services,Fuel,2313373, 04/09/2018,52.64,"1,587.48","1,844.84"
600050,Water & Sewerage,Operational Services,Infrastructure and Planning,49002,Miscellaneous Expenditure,Sibleys Fuel & Marine Services,Fuel,2313373, 04/09/2018,53.45,"1,587.48","1,844.84"
600050,Water & Sewerage,Operational Services,Infrastructure and Planning,49002,Miscellaneous Expenditure,Sibleys Fuel & Marine Services,Fuel,2313373, 04/09/2018,48.14,"1,587.48","1,844.84"
600050,Water & Sewerage,Operational Services,Infrastructure and Planning,22002,Electricity,British Gas Business,27/4 - 24/5,2318062, 24/08/2018,"3,899.98","3,899.98","4,679.97"
600050,Water & Sewerage,Operational Services,Infrastructure and Planning,49002,Miscellaneous Expenditure,Oil & Water Supplies Ltd,"Supapleat FFC, Silicone-PN 24PPOO5-40HSA x 15",2342173, 20/09/2018,"4,725.00","4,725.00","5,670.00"
600050,Water & Sewerage,Operational Services,Infrastructure and Planning,49002,Miscellaneous Expenditure,Oil & Water Supplies Ltd,Pump end 102L01272-ZN616 10-6 B/S,2342173, 20/09/2018,"-4,725.00","4,725.00","5,670.00"
600050,Water & Sewerage,Operational Services,Infrastructure and Planning,49002,Miscellaneous Expenditure,Oil & Water Supplies Ltd,Pump end 102L01272-ZN616 10-6 B/S,2342173, 20/09/2018,"4,725.00","4,725.00","5,670.00"
600050,Water & Sewerage,Operational Services,Infrastructure and Planning,49002,Miscellaneous Expenditure,Oil & Water Supplies Ltd,"Pro-Tek SBS40 (20kg drums), RO Cleanse 24 (20kg drums)",2279295, 05/07/2018,"2,653.12","2,653.12","2,653.12"
600050,Water & Sewerage,Operational Services,Infrastructure and Planning,22002,Electricity,British Gas Business,23/2 - 23/3,2318064, 24/08/2018,"10,040.94","10,040.94","12,049.12"
600050,Water & Sewerage,Operational Services,Infrastructure and Planning,49002,Miscellaneous Expenditure,Pfs (Helston) Ltd,"Mitox head/cutter, PPE, 20 - 20"" STDS micron filters, equal sockets, conditioning fluid",2318267, 23/08/2018,"2,379.50","2,379.50","2,855.40"
600050,Water & Sewerage,Operational Services,Infrastructure and Planning,49002,Miscellaneous Expenditure,Pfs (Helston) Ltd,CARRIAGE,2318960, 30/08/2018,100,"1,146.40","1,375.68"
600050,Water & Sewerage,Operational Services,Infrastructure and Planning,49002,Miscellaneous Expenditure,Pfs (Helston) Ltd,"25 kg bags Juraperle ph media, softner salt tablets 25kg bags",2318960, 30/08/2018,"1,046.40","1,146.40","1,375.68"
600050,Water & Sewerage,Operational Services,Infrastructure and Planning,49002,Miscellaneous Expenditure,Pfs (Helston) Ltd,"25 kg bags Juraperle ph media, softner salt tablets 25kg bags",2318960, 30/08/2018,"-1,046.40","1,146.40","1,375.68"
600050,Water & Sewerage,Operational Services,Infrastructure and Planning,49002,Miscellaneous Expenditure,Pfs (Helston) Ltd,"25 kg bags Juraperle ph media, softner salt tablets 25kg bags",2318960, 30/08/2018,"1,046.40","1,146.40","1,375.68"
600050,Water & Sewerage,Operational Services,Infrastructure and Planning,22002,Electricity,British Gas Business,Electricity Charges,2327398, 31/08/2018,"5,847.00","5,847.00","7,016.40"
600050,Water & Sewerage,Operational Services,Infrastructure and Planning,22002,Electricity,British Gas Business,Electricity Charges,2327416, 31/08/2018,978.75,978.75,"1,174.50"
600050,Water & Sewerage,Operational Services,Infrastructure and Planning,46103,Hotel Expenses,Scilly Self Catering,REDACTED,2268490, 10/07/2018,"1,170.00","1,170.00","1,170.00"
600050,Water & Sewerage,Operational Services,Infrastructure and Planning,49002,Miscellaneous Expenditure,Pfs (Helston) Ltd,"Marchal DSN6 3P+E (+4AUX), s/s cable, water meter, double check valve, cable ties, flange adaptors, couplers, elbows, waxoyl",2318969, 23/08/2018,"3,174.19","3,174.19","3,809.02"
600050,Water & Sewerage,Operational Services,Infrastructure and Planning,49002,Miscellaneous Expenditure,Pfs (Helston) Ltd,"Hazardous cabinet, Esybox, signs, repair clamps, pipe, trailing plug",2318265, 23/08/2018,"2,707.74","2,707.74","3,249.29"
600050,Water & Sewerage,Operational Services,Infrastructure and Planning,49002,Miscellaneous Expenditure,Pfs (Helston) Ltd,"Hydranautics low fouling 4040 membrane, 5- tier 265kg shelving unit, softner salt tablets 25kg",2318971, 23/08/2018,"1,493.60","1,493.60","1,792.32"
600050,Water & Sewerage,Operational Services,Infrastructure and Planning,49002,Miscellaneous Expenditure,Pfs (Helston) Ltd,"110V twin drum cable puller, 110V terminal box and foot controller parts",2318974, 23/08/2018,"3,540.00","3,540.00","4,248.00"
600050,Water & Sewerage,Operational Services,Infrastructure and Planning,22002,Electricity,British Gas Business,Electricity Charges,2327400, 31/08/2018,"1,838.48","1,838.48","2,206.17"
600050,Water & Sewerage,Operational Services,Infrastructure and Planning,49002,Miscellaneous Expenditure,Oil & Water Supplies Ltd,3 x Caustic soda IBC twaddle 60 sodium hydroxide with tamper proof seal and delivery,2305823, 07/08/2018,"4,541.00","4,541.00","5,449.20"
600050,Water & Sewerage,Operational Services,Infrastructure and Planning,49002,Miscellaneous Expenditure,Pfs (Helston) Ltd,"Plasson fittings, wipes, CFE granules, cable ties, Motorola extreme quad pack, shackles, brush set, motor, reflective equipment, clips, cleaner, bungee cords, MDPE pipe,",2318959, 23/08/2018,"1,958.76","1,958.76","2,350.49"
600050,Water & Sewerage,Operational Services,Infrastructure and Planning,49002,Miscellaneous Expenditure,Oil & Water Supplies Ltd,Pump end 102L01272-ZN616 10-6 B/S,2342204, 20/09/2018,"3,678.00","3,678.00","4,413.60"
600050,Water & Sewerage,Operational Services,Infrastructure and Planning,49002,Miscellaneous Expenditure,Scillonian Shellfish,Use of vessel and divers to deploy sea water intake system,2264546, 03/07/2018,"6,000.00","6,000.00","7,200.00"
600050,Water & Sewerage,Operational Services,Infrastructure and Planning,49002,Miscellaneous Expenditure,Pfs (Helston) Ltd,Hydranautic low fouling membranes,2318266, 23/08/2018,"2,166.80","2,166.80","2,600.16"
600050,Water & Sewerage,Operational Services,Infrastructure and Planning,49002,Miscellaneous Expenditure,Scilly Self Catering,Self Catering Accommodation for two Water engineers,2343851, 25/09/2018,925,925,"1,110.00"
600050,Water & Sewerage,Operational Services,Infrastructure and Planning,22002,Electricity,British Gas Business,24/3 - 26/4,2318081, 24/08/2018,"4,615.47","4,615.47","5,538.56"
600050,Water & Sewerage,Operational Services,Infrastructure and Planning,22002,Electricity,British Gas Business,Electricity Charges,2327417, 31/08/2018,"5,070.91","5,070.91","6,085.09"
600050,Water & Sewerage,Operational Services,Infrastructure and Planning,49002,Miscellaneous Expenditure,South West Water Ltd,Training courses,2311284, 21/08/2018,846.16,846.16,"1,015.39"
600050,Water & Sewerage,Operational Services,Infrastructure and Planning,49002,Miscellaneous Expenditure,Pfs (Helston) Ltd,"MDPE, HPPE, Seawater hose, brass filter, plasson compression ball valve, plasson nipple",2318964, 23/08/2018,"2,823.61","2,823.61","3,388.32"
600050,Water & Sewerage,Operational Services,Infrastructure and Planning,22002,Electricity,British Gas Business,29/3 - 28/4,2318085, 24/08/2018,581.26,581.26,697.51
600050,Water & Sewerage,Operational Services,Infrastructure and Planning,49002,Miscellaneous Expenditure,C.G Ground Works And General Building,Work on Mermaid Parking Lot,2316139, 06/09/2018,"4,134.04","4,134.04","4,960.84"
600050,Water & Sewerage,Operational Services,Infrastructure and Planning,49002,Miscellaneous Expenditure,Terran Design Systems Ltd,"Data storage HDD 2TB, SSD drives for both scada systems, boot USB key, program protection USB key, hydro-static probe, SATA leads, desiccant packets",2322107, 28/08/2018,"1,509.00","1,509.00","1,810.80"
600050,Water & Sewerage,Operational Services,Infrastructure and Planning,49002,Miscellaneous Expenditure,Terran Design Systems Ltd,"replacement dosing pump connectors, fan filters, Y77 lubricating fluid, dielectric gel, transfer pump control box, 6 bar 316L pressure sensor, titanium pressure sensor, carrieage",2325994, 30/08/2018,"1,204.54","1,204.54","1,445.45"
600050,Water & Sewerage,Operational Services,Infrastructure and Planning,49002,Miscellaneous Expenditure,Oil & Water Supplies Ltd,"PRO-TEK SBS40 25kg drums, Ani-scalent PRO-TEK R.O Plus 11 25kg drums",2331094, 04/09/2018,"4,350.08","4,350.08","5,220.10"
600050,Water & Sewerage,Operational Services,Infrastructure and Planning,49002,Miscellaneous Expenditure,Terran Design Systems Ltd,"Updating PLC firmware, changes to pump station software for chemical dosing. Additional alarms for safety PL. Re - enable UV's after electrical modification. Seven days site work. Testing cables with TDR.",2336540, 13/09/2018,"2,897.00","2,897.00","3,476.40"
600050,Water & Sewerage,Operational Services,Infrastructure and Planning,49002,Miscellaneous Expenditure,Terran Design Systems Ltd,"8 days site work,  assistance with intake pump, work on desalination plant, prep work on valve monitoring, installing replacement hard drives on both scada PC's",2304018, 07/08/2018,"2,800.00","2,800.00","3,360.00"
600050,Water & Sewerage,Operational Services,Infrastructure and Planning,22002,Electricity,British Gas Business,24/3 - 26/4,2318082, 24/08/2018,"1,180.25","1,180.25","1,416.30"
600050,Water & Sewerage,Operational Services,Infrastructure and Planning,49002,Miscellaneous Expenditure,Pfs (Helston) Ltd,"Electrical capacitors, contractors, overload, control level, softener salt tablets.",2318264, 23/08/2018,943.54,943.54,"1,132.23"
600050,Water & Sewerage,Operational Services,Infrastructure and Planning,49002,Miscellaneous Expenditure,Oil & Water Supplies Ltd,3 x Caustic soda IBC twaddle 60 sodium hydroxide 1250 kgs with tamper proof seals,2335624, 11/09/2018,"4,541.00","4,541.00","5,449.20"
600050,Water & Sewerage,Operational Services,Infrastructure and Planning,49002,Miscellaneous Expenditure,Evans Electricals,Assistance required with sea water intake deployment. Electrically testing system.,2312817, 21/08/2018,"1,408.00","1,408.00","1,126.40"
600050,Water & Sewerage,Operational Services,Infrastructure and Planning,49002,Miscellaneous Expenditure,Pfs (Helston) Ltd,E.SYBOX booster pump,2318980, 23/08/2018,"1,909.50","1,909.50","2,291.40"
600050,Water & Sewerage,Operational Services,Infrastructure and Planning,49002,Miscellaneous Expenditure,Oil & Water Supplies Ltd,Anti-Scalent PRO-TEK R.O. Plus 11 chemical,2286741, 19/07/2018,"2,577.92","2,577.92","3,093.50"
600050,Water & Sewerage,Operational Services,Infrastructure and Planning,22002,Electricity,British Gas Business,27/4 - 24/5,2318057, 24/08/2018,"1,127.14","1,127.14","1,352.56"
600050,Water & Sewerage,Operational Services,Infrastructure and Planning,49002,Miscellaneous Expenditure,Sibleys Fuel & Marine Services,Fuel,2284393, 02/08/2018,209.34,"3,468.45","3,788.47"
600050,Water & Sewerage,Operational Services,Infrastructure and Planning,49002,Miscellaneous Expenditure,Fonthill Waters Ltd,CARRAIGE,2292094, 26/07/2018,160,592,710.4
600050,Water & Sewerage,Operational Services,Infrastructure and Planning,49002,Miscellaneous Expenditure,Fonthill Waters Ltd,4 x pallet of bottled drinking water,2292094, 26/07/2018,432,592,710.4
600050,Water & Sewerage,Operational Services,Infrastructure and Planning,49002,Miscellaneous Expenditure,Toot's Taxis,Taxi for water sampling  in July as no vehicle available,2305416, 16/08/2018,511.25,519.25,519.25
600060,Airport,Operational Services,Infrastructure and Planning,31102,Vehicle Repair and Maintenance,David Parr Engineering,"D Parr Engineering Contract
All Airport Vehicles & Machinery
1st April 2018 - 31st March 2019",2289061, 19/07/2018,"1,160.00","1,160.00","1,392.00"
600060,Airport,Operational Services,Infrastructure and Planning,22001,Heating Oil,Sibleys Fuel & Marine Services,"Oil for Airport Boiler & Hot Rig
1st April 2018 - 31st March 2019",2282018, 10/07/2018,"1,207.00","1,292.94","1,370.48"
600060,Airport,Operational Services,Infrastructure and Planning,31204,Derv Purchases,Sibleys Fuel & Marine Services,Airport & Airport Fire vehicles fuel 1st April 2018 - 31st March 2019,2282018, 10/07/2018,42.5,"1,292.94","1,370.48"
600060,Airport,Operational Services,Infrastructure and Planning,31204,Derv Purchases,Sibleys Fuel & Marine Services,"Jizer x 2 (Degreaser)
Diesel Fire 3",2282018, 10/07/2018,43.44,"1,292.94","1,370.48"
600060,Airport,Operational Services,Infrastructure and Planning,22002,Electricity,Edf Energy Plc,ELECTRICITY,2319229, 11/09/2018,"1,637.66","1,637.66","1,965.20"
600060,Airport,Operational Services,Infrastructure and Planning,41102,Equipment Rental,Servicom (High Tech) Ltd,"Hire and Servicing of Airport UHF radios
1st April 2018 - 31st March 2019",2281877, 10/07/2018,778.16,778.16,933.78
600060,Airport,Operational Services,Infrastructure and Planning,21101,R&M - Buildings - Planned,REDACTED,Repair Works to B Centre,2284432, 17/07/2018,"2,500.00","3,000.00","2,900.00"
600060,Airport,Operational Services,Infrastructure and Planning,21101,R&M - Buildings - Planned,REDACTED,Repair Works to B Centre,2284432, 17/07/2018,500,"3,000.00","2,900.00"
600060,Airport,Operational Services,Infrastructure and Planning,21101,R&M - Buildings - Planned,REDACTED,Repair Works to B Centre,2284432, 17/07/2018,"3,000.00","3,000.00","2,900.00"
600060,Airport,Operational Services,Infrastructure and Planning,21101,R&M - Buildings - Planned,REDACTED,Repair Works to B Centre,2284432, 17/07/2018,"-3,000.00","3,000.00","2,900.00"
600060,Airport,Operational Services,Infrastructure and Planning,21110,R&M - Electrical - Planned,Cornwall Refrigeration solutions Ltd,Airport Ground Lighting Repairs & Maintenance 1st April 2018 - 31st March 2019,2286653, 17/07/2018,"1,040.00","1,040.00","1,248.00"
600060,Airport,Operational Services,Infrastructure and Planning,31102,Vehicle Repair and Maintenance,David Parr Engineering,D Parr Engineering   All Airport vehicles breakdown & repair as required @ 38.00 per hr  1st April 2018 - 31st March 2019,2289064, 19/07/2018,532,532,638.4
600060,Airport,Operational Services,Infrastructure and Planning,22002,Electricity,Edf Energy Plc,ELECTRICITY,2292027, 09/08/2018,"2,176.62","2,176.62","2,611.94"
600060,Airport,Operational Services,Infrastructure and Planning,41102,Equipment Rental,Servicom (High Tech) Ltd,"Hire and Servicing of Airport UHF radios
1st April 2018 - 31st March 2019",2305300, 07/08/2018,778.16,778.16,933.78
600060,Airport,Operational Services,Infrastructure and Planning,43534,Licences,RBS Commercial Card Division,28-06-2018|7377|UK CAA LICENSING|RH6 0YR|9399|CAA AIR TRAFFIC CONTROLLER VALIDATION FEE|,2316130, 24/08/2018,"1,740.00","9,059.30","9,145.33"
600060,Airport,Operational Services,Infrastructure and Planning,41102,Equipment Rental,Servicom (High Tech) Ltd,"Hire and Servicing of Airport UHF radios
1st April 2018 - 31st March 2019",2331873, 13/09/2018,778.16,778.16,933.78
600060,Airport,Operational Services,Infrastructure and Planning,43506,Professional Fees - Legal,Cornwall Council,Legal Service,2270107, 12/07/2018,585.6,"1,096.26","1,243.51"
600060,Airport,Operational Services,Infrastructure and Planning,43506,Professional Fees - Legal,Cornwall Council,Legal Service,2270107, 12/07/2018,-591.7,"1,096.26","1,243.51"
600060,Airport,Operational Services,Infrastructure and Planning,43506,Professional Fees - Legal,Cornwall Council,Legal Service,2270107, 12/07/2018,591.7,"1,096.26","1,243.51"
600060,Airport,Operational Services,Infrastructure and Planning,43506,Professional Fees - Legal,Cornwall Council,Legal Service,2270107, 12/07/2018,-524.69,"1,096.26","1,243.51"
600060,Airport,Operational Services,Infrastructure and Planning,43506,Professional Fees - Legal,Cornwall Council,Legal Service,2270107, 12/07/2018,524.69,"1,096.26","1,243.51"
600060,Airport,Operational Services,Infrastructure and Planning,43506,Professional Fees - Legal,Cornwall Council,Legal Service,2270107, 12/07/2018,-422.38,"1,096.26","1,243.51"
600060,Airport,Operational Services,Infrastructure and Planning,43506,Professional Fees - Legal,Cornwall Council,Legal Service,2270107, 12/07/2018,422.38,"1,096.26","1,243.51"
600060,Airport,Operational Services,Infrastructure and Planning,43506,Professional Fees - Legal,Cornwall Council,Legal Service,2270107, 12/07/2018,-422.38,"1,096.26","1,243.51"
600060,Airport,Operational Services,Infrastructure and Planning,43506,Professional Fees - Legal,Cornwall Council,Legal Service,2270107, 12/07/2018,422.38,"1,096.26","1,243.51"
600060,Airport,Operational Services,Infrastructure and Planning,43506,Professional Fees - Legal,Cornwall Council,Legal Service,2270107, 12/07/2018,-585.6,"1,096.26","1,243.51"
600060,Airport,Operational Services,Infrastructure and Planning,43506,Professional Fees - Legal,Cornwall Council,Legal Service,2270107, 12/07/2018,585.6,"1,096.26","1,243.51"
600060,Airport,Operational Services,Infrastructure and Planning,31603,Other Public Transport,Falcon Boating Ltd,"Falcon Boating  Boat hire for 1st, 29th & 30th May 2018",2275122, 17/07/2018,364,746,746
600060,Airport,Operational Services,Infrastructure and Planning,41104,Equipment & Plant - Direct Purchase,Iavna Ltd,"IAVNA - Electrical Supplies 
1st April 2018 - 31st March 2019",2316138, 21/08/2018,978.2,978.2,"1,173.84"
600060,Airport,Operational Services,Infrastructure and Planning,22002,Electricity,Edf Energy Plc,ELECTRICITY,2270191, 19/07/2018,"3,010.38","3,010.38","3,612.45"
600060,Airport,Operational Services,Infrastructure and Planning,21101,R&M - Buildings - Planned,Dorma Uk Ltd,Dormakaba Doors,2289072, 26/07/2018,808.75,808.75,970.5
600060,Airport,Operational Services,Infrastructure and Planning,22001,Heating Oil,Sibleys Fuel & Marine Services,"Oil for Airport Boiler & Hot Rig
1st April 2018 - 31st March 2019",2333584, 11/09/2018,794.58,"2,163.25","2,281.41"
600060,Airport,Operational Services,Infrastructure and Planning,22001,Heating Oil,Sibleys Fuel & Marine Services,"Oil for Airport Boiler & Hot Rig
1st April 2018 - 31st March 2019",2333584, 11/09/2018,"1,302.00","2,163.25","2,281.41"
600060,Airport,Operational Services,Infrastructure and Planning,31204,Derv Purchases,Sibleys Fuel & Marine Services,Airport & Airport Fire vehicles fuel 1st April 2018 - 31st March 2019,2333584, 11/09/2018,66.67,"2,163.25","2,281.41"
600060,Airport,Operational Services,Infrastructure and Planning,41104,Equipment & Plant - Direct Purchase,ATG Airports Ltd,ATG - Electrical supplies   1st April 2018 - 31st March 2019,2279146, 05/07/2018,849.22,849.22,"1,019.06"
600060,Airport,Operational Services,Infrastructure and Planning,31102,Vehicle Repair and Maintenance,David Parr Engineering,D Parr Engineering   All Airport vehicles breakdown & repair as required @ 38.00 per hr  1st April 2018 - 31st March 2019,2313758, 21/08/2018,"1,451.54","1,451.54","1,741.85"
600060,Airport,Operational Services,Infrastructure and Planning,31102,Vehicle Repair and Maintenance,David Parr Engineering,"D Parr Engineering Contract
All Airport Vehicles & Machinery
1st April 2018 - 31st March 2019",2351529, 27/09/2018,"1,160.00","1,160.00","1,392.00"
600060,Airport,Operational Services,Infrastructure and Planning,21110,R&M - Electrical - Planned,Cornwall Refrigeration solutions Ltd,Airport Ground Lighting Repairs & Maintenance 1st April 2018 - 31st March 2019,2294949, 26/07/2018,"1,040.00","1,040.00","1,248.00"
600060,Airport,Operational Services,Infrastructure and Planning,27001,Contract Cleaning,REDACTED,Airport Cleaning  1st April 2018- 31st March 2019,2296247, 31/07/2018,660,660,660
600060,Airport,Operational Services,Infrastructure and Planning,43501,External Testing & Analysis,Isles Of Scilly Steamship Co,Isles of Scilly Steamship Co - NDB flight check -max 2 hours @ 600.00 per hour + VAT,2338040, 18/09/2018,850,850,"1,020.00"
600060,Airport,Operational Services,Infrastructure and Planning,31102,Vehicle Repair and Maintenance,David Parr Engineering,"D Parr Engineering Contract
All Airport Vehicles & Machinery
1st April 2018 - 31st March 2019",2275590, 03/07/2018,"1,160.00","1,160.00","1,392.00"
600060,Airport,Operational Services,Infrastructure and Planning,31102,Vehicle Repair and Maintenance,David Parr Engineering,D Parr Engineering   All Airport vehicles breakdown & repair as required @ 38.00 per hr  1st April 2018 - 31st March 2019,2275593, 03/07/2018,684,684,820.8
600060,Airport,Operational Services,Infrastructure and Planning,41104,Equipment & Plant - Direct Purchase,Linde Severnside Ltd,Linde Severnside  - purchase of new electric tow tractor,2281807, 10/07/2018,"12,255.78","12,255.78","14,706.94"
600060,Airport,Operational Services,Infrastructure and Planning,22001,Heating Oil,Sibleys Fuel & Marine Services,"Oil for Airport Boiler & Hot Rig
1st April 2018 - 31st March 2019",2282088, 17/07/2018,"1,168.50","2,149.81","2,284.79"
600060,Airport,Operational Services,Infrastructure and Planning,22001,Heating Oil,Sibleys Fuel & Marine Services,"Oil for Airport Boiler & Hot Rig
1st April 2018 - 31st March 2019",2282088, 17/07/2018,798.13,"2,149.81","2,284.79"
600060,Airport,Operational Services,Infrastructure and Planning,22001,Heating Oil,Sibleys Fuel & Marine Services,"Oil for Airport Boiler & Hot Rig
1st April 2018 - 31st March 2019",2282088, 17/07/2018,"-1,966.63","2,149.81","2,284.79"
600060,Airport,Operational Services,Infrastructure and Planning,22001,Heating Oil,Sibleys Fuel & Marine Services,"Oil for Airport Boiler & Hot Rig
1st April 2018 - 31st March 2019",2282088, 17/07/2018,"1,966.63","2,149.81","2,284.79"
600060,Airport,Operational Services,Infrastructure and Planning,22001,Heating Oil,Sibleys Fuel & Marine Services,"Oil for Airport Boiler & Hot Rig
1st April 2018 - 31st March 2019",2282088, 17/07/2018,-798.13,"2,149.81","2,284.79"
600060,Airport,Operational Services,Infrastructure and Planning,22001,Heating Oil,Sibleys Fuel & Marine Services,"Oil for Airport Boiler & Hot Rig
1st April 2018 - 31st March 2019",2282088, 17/07/2018,"-1,168.50","2,149.81","2,284.79"
600060,Airport,Operational Services,Infrastructure and Planning,22001,Heating Oil,Sibleys Fuel & Marine Services,"Oil for Airport Boiler & Hot Rig
1st April 2018 - 31st March 2019",2282088, 17/07/2018,-32.51,"2,149.81","2,284.79"
600060,Airport,Operational Services,Infrastructure and Planning,22001,Heating Oil,Sibleys Fuel & Marine Services,"Oil for Airport Boiler & Hot Rig
1st April 2018 - 31st March 2019",2282088, 17/07/2018,798.13,"2,149.81","2,284.79"
600060,Airport,Operational Services,Infrastructure and Planning,22001,Heating Oil,Sibleys Fuel & Marine Services,"Oil for Airport Boiler & Hot Rig
1st April 2018 - 31st March 2019",2282088, 17/07/2018,"1,168.50","2,149.81","2,284.79"
600060,Airport,Operational Services,Infrastructure and Planning,22001,Heating Oil,Sibleys Fuel & Marine Services,"Oil for Airport Boiler & Hot Rig
1st April 2018 - 31st March 2019",2282088, 17/07/2018,32.51,"2,149.81","2,284.79"
600060,Airport,Operational Services,Infrastructure and Planning,31204,Derv Purchases,Sibleys Fuel & Marine Services,Airport & Airport Fire vehicles fuel 1st April 2018 - 31st March 2019,2282088, 17/07/2018,183.18,"2,149.81","2,284.79"
600060,Airport,Operational Services,Infrastructure and Planning,31204,Derv Purchases,Sibleys Fuel & Marine Services,Airport & Airport Fire vehicles fuel 1st April 2018 - 31st March 2019,2282088, 17/07/2018,-150.67,"2,149.81","2,284.79"
600060,Airport,Operational Services,Infrastructure and Planning,31204,Derv Purchases,Sibleys Fuel & Marine Services,Airport & Airport Fire vehicles fuel 1st April 2018 - 31st March 2019,2282088, 17/07/2018,-798.13,"2,149.81","2,284.79"
600060,Airport,Operational Services,Infrastructure and Planning,31204,Derv Purchases,Sibleys Fuel & Marine Services,Airport & Airport Fire vehicles fuel 1st April 2018 - 31st March 2019,2282088, 17/07/2018,-53.13,"2,149.81","2,284.79"
600060,Airport,Operational Services,Infrastructure and Planning,31204,Derv Purchases,Sibleys Fuel & Marine Services,Airport & Airport Fire vehicles fuel 1st April 2018 - 31st March 2019,2282088, 17/07/2018,53.13,"2,149.81","2,284.79"
600060,Airport,Operational Services,Infrastructure and Planning,31204,Derv Purchases,Sibleys Fuel & Marine Services,Airport & Airport Fire vehicles fuel 1st April 2018 - 31st March 2019,2282088, 17/07/2018,798.13,"2,149.81","2,284.79"
600060,Airport,Operational Services,Infrastructure and Planning,31204,Derv Purchases,Sibleys Fuel & Marine Services,Airport & Airport Fire vehicles fuel 1st April 2018 - 31st March 2019,2282088, 17/07/2018,150.67,"2,149.81","2,284.79"
600060,Airport,Operational Services,Infrastructure and Planning,12601,Professional subscriptions,Nats (Services) Limited,AFPEX Subscription 11th June 18 - 10th June 19 St Mary's Air Traffic Control,2299639, 23/08/2018,"1,995.00","1,995.00","2,394.00"
600060,Airport,Operational Services,Infrastructure and Planning,31102,Vehicle Repair and Maintenance,David Parr Engineering,"D Parr Engineering Contract
All Airport Vehicles & Machinery
1st April 2018 - 31st March 2019",2313764, 21/08/2018,"1,160.00","1,160.00","1,392.00"
600060,Airport,Operational Services,Infrastructure and Planning,49002,Miscellaneous Expenditure,Engelbert Strauss Ltd,"01.04.18 - 31.03.19
yearly for Strauss Direct for airport Fire Service",2337982, 25/09/2018,815.66,815.66,978.79
600060,Airport,Operational Services,Infrastructure and Planning,31102,Vehicle Repair and Maintenance,David Parr Engineering,D Parr Engineering   All Airport vehicles breakdown & repair as required @ 38.00 per hr  1st April 2018 - 31st March 2019,2275598, 03/07/2018,"2,888.00","2,888.00","3,465.60"
600060,Airport,Operational Services,Infrastructure and Planning,41302,Materials,St Ives Steeplejacks,St Ives Steeplejacks - installation of earthing system for DRDF Mast at St Mary's Airport,2328987, 06/09/2018,585,985,"1,102.00"
600060,Airport,Operational Services,Infrastructure and Planning,41302,Materials,St Ives Steeplejacks,St Ives Steeplejacks - installation of earthing system for DRDF Mast at St Mary's Airport,2328987, 06/09/2018,400,985,"1,102.00"
600060,Airport,Operational Services,Infrastructure and Planning,41302,Materials,St Ives Steeplejacks,St Ives Steeplejacks - installation of earthing system for DRDF Mast at St Mary's Airport,2328987, 06/09/2018,-985,985,"1,102.00"
600060,Airport,Operational Services,Infrastructure and Planning,41302,Materials,St Ives Steeplejacks,St Ives Steeplejacks - installation of earthing system for DRDF Mast at St Mary's Airport,2328987, 06/09/2018,985,985,"1,102.00"
600100,Adult Social Care,Adult Social Care,Community,43504,Consultants - Management,Community 1st Cornwall Ltd,Com'ty1st: 14/08/18 10646,2347181, 25/09/2018,"23,679.28","23,679.28","28,415.14"
600100,Adult Social Care,Adult Social Care,Community,45208,IT Software Support,Azeus UK Limited,AzeusCare Year 4 Annual Charge (01/09/2018 - 31/08/2019) for Adults and Children's Social Care.,2346357, 25/09/2018,"2,439.44","4,878.89","5,854.67"
600100,Adult Social Care,Adult Social Care,Community,57093,REDACTED,REDACTED,REDACTED,2310072, 16/08/2018,"3,520.71","3,520.71","3,520.71"
600100,Adult Social Care,Adult Social Care,Community,43506,Professional Fees - Legal,Cornwall Council,Legal Advise for Adult Social Care Team from Cornwall Council,2270107, 12/07/2018,3,"1,096.26","1,243.51"
600100,Adult Social Care,Adult Social Care,Community,43506,Professional Fees - Legal,Cornwall Council,Legal Advise for Adult Social Care Team from Cornwall Council,2270107, 12/07/2018,86.4,"1,096.26","1,243.51"
600100,Adult Social Care,Adult Social Care,Community,43506,Professional Fees - Legal,Cornwall Council,Legal Advise for Adult Social Care Team from Cornwall Council,2270107, 12/07/2018,-90.3,"1,096.26","1,243.51"
600100,Adult Social Care,Adult Social Care,Community,43506,Professional Fees - Legal,Cornwall Council,Legal Advise for Adult Social Care Team from Cornwall Council,2270107, 12/07/2018,90.3,"1,096.26","1,243.51"
600100,Adult Social Care,Adult Social Care,Community,57093,REDACTED,REDACTED,REDACTED,2310073, 16/08/2018,"3,407.14","3,407.14","3,407.14"
600100,Adult Social Care,Adult Social Care,Community,57093,REDACTED,REDACTED,REDACTED,2318250, 30/08/2018,"3,520.71","3,520.71","3,520.71"
600100,Adult Social Care,Adult Social Care,Community,31603,Other Public Transport,St Mary's Health Centre,"St Marys Health Centre
Patient Transfer from Isles of Scilly to Penzance ",2343883, 20/09/2018,900,900,900
600101,Better Care Fund,Adult Social Care,Community,43532,Professional Fees - Other,St Mary's Health Centre,REDACTED,2337174, 13/09/2018,"10,000.00","10,000.00","10,000.00"
600101,Better Care Fund,Adult Social Care,Community,31603,Other Public Transport,Tresco Estate,"Concessionary Fares single tickets for Bryher, Tresco & St. Martins, 1st April 2018 - 31st March 2019",2331100, 06/09/2018,"1,364.00","1,364.00","1,364.00"
600101,Better Care Fund,Adult Social Care,Community,43532,Professional Fees - Other,St Mary's Health Centre,REDACTED,2337176, 13/09/2018,"10,000.00","10,000.00","10,000.00"
600101,Better Care Fund,Adult Social Care,Community,31603,Other Public Transport,Tresco Estate,"Concessionary Fares single tickets for Bryher, Tresco & St. Martins, 1st April 2018 - 31st March 2019",2285696, 19/07/2018,"1,721.50","1,721.50","1,721.50"
600101,Better Care Fund,Adult Social Care,Community,31603,Other Public Transport,Tresco Estate,"Concessionary Fares single tickets for Bryher, Tresco & St. Martins, 1st April 2018 - 31st March 2019",2307082, 09/08/2018,"1,226.50","1,226.50","1,226.50"
600104,Short and Long Term Support 65,Adult Social Care,Community,57066,Independent Meals at Home - Private Contractors,Cornwall Partnership NHS Foundation Trust,"Provision of Meals on Wheels for the period of 1st April 2018-31st March 2019, Meals @ 4 each, estimate of 850.00 per month before VAT.",2279225, 17/07/2018,984,984,"1,180.80"
600104,Short and Long Term Support 65,Adult Social Care,Community,57066,Independent Meals at Home - Private Contractors,Cornwall Partnership NHS Foundation Trust,"Provision of Meals on Wheels for the period of 1st April 2018-31st March 2019, Meals @ 4 each, estimate of 850.00 per month before VAT.",2309938, 30/08/2018,764,764,916.8
600104,Short and Long Term Support 65,Adult Social Care,Community,57066,Independent Meals at Home - Private Contractors,Cornwall Partnership NHS Foundation Trust,"Provision of Meals on Wheels for the period of 1st April 2018-31st March 2019, Meals @ 4 each, estimate of 850.00 per month before VAT.",2295318, 16/08/2018,764,764,916.8
600104,Short and Long Term Support 65,Adult Social Care,Community,57065,Independent At Home Care - Private Contractors,REDACTED,REDACTED,2337170, 13/09/2018,"5,450.00","5,450.00","5,450.00"
600105,Park House,Adult Social Care,Community,73409,Catering Exp,Coastal View Kitchen,July weekly meals and sandwiches for Park House.,2311254, 14/08/2018,665,665,665
600105,Park House,Adult Social Care,Community,22001,Heating Oil,Sibleys Fuel & Marine Services,Park House Heating Oil for 2018,2313373, 04/09/2018,401.02,"1,587.48","1,844.84"
600105,Park House,Adult Social Care,Community,73406,Fuel Exp,Sibleys Fuel & Marine Services,"Fuel for Park House Car
April 18 - March 19",2313373, 04/09/2018,37.52,"1,587.48","1,844.84"
600105,Park House,Adult Social Care,Community,21217,R&M - Disabled Adaptations - Reactive,P & P Lifts Ltd,To supply and install 2 x landing gate locks. Investigation of wiring fault.,2312718, 14/08/2018,"1,295.00","1,295.00","1,554.00"
600105,Park House,Adult Social Care,Community,41118,Health & Safety Equipment,Protec Healthcare LLP,J & P care sundries 28/8/18 invoice number 148916,2332023, 06/09/2018,944.08,944.08,"1,132.90"
600105,Park House,Adult Social Care,Community,49002,Miscellaneous Expenditure,Protec Healthcare LLP,Healthcare supplies  and hoists -April 2018,2287253, 02/08/2018,978.34,978.34,"1,174.01"
600105,Park House,Adult Social Care,Community,42001,Catering - Provisions,RBS Commercial Card Division,16-08-2018|6517|BOOKER LIMITED REDRUTH|TR15 3RH|5811|,2346347, 27/09/2018,657.89,"10,861.14","11,082.92"
600105,Park House,Adult Social Care,Community,49002,Miscellaneous Expenditure,Protec Healthcare LLP,Healthcare supplies  and hoists -April 2018,2287250, 02/08/2018,756.15,756.15,907.38
600105,Park House,Adult Social Care,Community,46119,Haulage Costs,Island Carriers,Fruit and Veg to park House from West Country,2305421, 07/08/2018,8.16,"3,615.14","4,338.16"
600105,Park House,Adult Social Care,Community,46119,Haulage Costs,Island Carriers,Fruit and Veg to park House from West Country,2305421, 07/08/2018,-8.35,"3,615.14","4,338.16"
600105,Park House,Adult Social Care,Community,46119,Haulage Costs,Island Carriers,Fruit and Veg to park House from West Country,2305421, 07/08/2018,8.35,"3,615.14","4,338.16"
600105,Park House,Adult Social Care,Community,46119,Haulage Costs,Island Carriers,Fruit and Veg to park House from West Country,2305421, 07/08/2018,-9.8,"3,615.14","4,338.16"
600105,Park House,Adult Social Care,Community,46119,Haulage Costs,Island Carriers,Fruit and Veg to park House from West Country,2305421, 07/08/2018,9.8,"3,615.14","4,338.16"
600105,Park House,Adult Social Care,Community,21229,R&M - Mechanical Reactive,P & P Lifts Ltd,P & P Lifts call out for Park House passenger lift on 30/6/18 invoice 22637.,2332018, 06/09/2018,"1,469.50","1,469.50","1,763.40"
600105,Park House,Adult Social Care,Community,21217,R&M - Disabled Adaptations - Reactive,P & P Lifts Ltd,Supply and install 4 x new landing door contacts and 2 x new limit switches  job number 43844.,2312717, 14/08/2018,850,850,"1,020.00"
600105,Park House,Adult Social Care,Community,42001,Catering - Provisions,Coastal View Kitchen,Weekly  meals for Park House from CVK invoice number 123459,2346341, 25/09/2018,900,900,900
600105,Park House,Adult Social Care,Community,73406,Fuel Exp,Sibleys Fuel & Marine Services,"Fuel for Park House Car
April 18 - March 19",2284393, 02/08/2018,71.88,"3,468.45","3,788.47"
600113,Early Year Provision,Childrens Services,Community,47013,Grants & Conts to Other Bodies - Discretionary,REDACTED,EY GRANT DISCRETIONARY,2286686, 17/07/2018,142.52,671.05,671.05
600113,Early Year Provision,Childrens Services,Community,47001,Grants & Conts to Other Bodies - Non Discretionary,REDACTED,EY GRANT NON DISCRETIONARY,2286686, 17/07/2018,528.53,671.05,671.05
600113,Early Year Provision,Childrens Services,Community,47013,Grants & Conts to Other Bodies - Discretionary,REDACTED,EY Grant  discretionary,2280614, 10/07/2018,407.2,731.48,731.48
600113,Early Year Provision,Childrens Services,Community,47001,Grants & Conts to Other Bodies - Non Discretionary,REDACTED,EY Grant non discretionary,2280614, 10/07/2018,324.28,731.48,731.48
600113,Early Year Provision,Childrens Services,Community,47013,Grants & Conts to Other Bodies - Discretionary,Crafti Kids Day Nursery,EY Grant  discretionary,2326462, 30/08/2018,"1,910.29","1,910.29","1,910.29"
600113,Early Year Provision,Childrens Services,Community,47013,Grants & Conts to Other Bodies - Discretionary,REDACTED,DISCRETIONARY EY FUNDING,2286687, 17/07/2018,244.32,708.96,708.96
600113,Early Year Provision,Childrens Services,Community,47001,Grants & Conts to Other Bodies - Non Discretionary,REDACTED,NON DISCRETIONARY EY FUNDING,2286687, 17/07/2018,464.64,708.96,708.96
600113,Early Year Provision,Childrens Services,Community,47001,Grants & Conts to Other Bodies - Non Discretionary,Crafti Kids Day Nursery,EY Grant non discretionary,2289980, 24/07/2018,"2,132.02","2,132.02","2,132.02"
600113,Early Year Provision,Childrens Services,Community,47013,Grants & Conts to Other Bodies - Discretionary,Crafti Kids Day Nursery,EY Grant  discretionary,2292105, 24/07/2018,"1,625.56","1,625.56","1,625.56"
600113,Early Year Provision,Childrens Services,Community,47013,Grants & Conts to Other Bodies - Discretionary,REDACTED,Discretionary EY funding,2310809, 14/08/2018,218.87,821.45,821.45
600113,Early Year Provision,Childrens Services,Community,47001,Grants & Conts to Other Bodies - Non Discretionary,REDACTED,Non Discretionary EY funding,2310809, 14/08/2018,602.58,821.45,821.45
600113,Early Year Provision,Childrens Services,Community,47001,Grants & Conts to Other Bodies - Non Discretionary,Crafti Kids Day Nursery,EY Grant non discretionary,2319277, 28/08/2018,"2,250.60","2,250.60","2,250.60"
600113,Early Year Provision,Childrens Services,Community,47013,Grants & Conts to Other Bodies - Discretionary,Crafti Kids Day Nursery,EY Grant  discretionary,2342349, 20/09/2018,550.74,550.74,550.74
600113,Early Year Provision,Childrens Services,Community,47001,Grants & Conts to Other Bodies - Non Discretionary,The Five Islands School,EY Grant non discretionary,2318968, 28/08/2018,"37,635.84","37,635.84","37,635.84"
600113,Early Year Provision,Childrens Services,Community,31603,Other Public Transport,Tresco Estate,EYS Boating -August 2018,2331103, 13/09/2018,"3,296.50","3,296.50","3,296.50"
600113,Early Year Provision,Childrens Services,Community,47001,Grants & Conts to Other Bodies - Non Discretionary,Crafti Kids Day Nursery,,2317578, 23/08/2018,"2,199.78","2,199.78","2,199.78"
600113,Early Year Provision,Childrens Services,Community,47001,Grants & Conts to Other Bodies - Non Discretionary,Crafti Kids Day Nursery,EY Grant non discretionary,2344081, 25/09/2018,"1,338.26","1,338.26","1,338.26"
600113,Early Year Provision,Childrens Services,Community,47013,Grants & Conts to Other Bodies - Discretionary,REDACTED,EY Grant discretionary,2310810, 14/08/2018,178.5,"1,455.05","1,455.05"
600113,Early Year Provision,Childrens Services,Community,47001,Grants & Conts to Other Bodies - Non Discretionary,REDACTED,EY Grant non discretionary,2310810, 14/08/2018,"1,276.55","1,455.05","1,455.05"
600113,Early Year Provision,Childrens Services,Community,47013,Grants & Conts to Other Bodies - Discretionary,REDACTED,EY Grant  discretionary,2326269, 30/08/2018,386.84,701.44,701.44
600113,Early Year Provision,Childrens Services,Community,47001,Grants & Conts to Other Bodies - Non Discretionary,REDACTED,EY Grant non discretionary,2326269, 30/08/2018,314.6,701.44,701.44
600114,Primary Provision,Childrens Services,Community,47013,Grants & Conts to Other Bodies - Discretionary,St Martins Out Of School Club,Discretionary out of school access primary provision,2347176, 25/09/2018,"1,376.62","1,376.62","1,376.62"
600114,Primary Provision,Childrens Services,Community,47013,Grants & Conts to Other Bodies - Discretionary,St Agnes Out Of School Club,Discretionary out of school access primary provision,2347172, 25/09/2018,589.98,589.98,589.98
600116,Holiday Activities,Childrens Services,Community,31603,Other Public Transport,Falcon Boating Ltd,"Boating for Non Stop Tri Coaches
(Cancelled Flights -Fog)",2275122, 17/07/2018,200,746,746
600117,Five Island School,Childrens Services,Community,43532,Professional Fees - Other,The Five Islands School,REDACTED,2275357, 03/07/2018,750,750,750
600117,Five Island School,Childrens Services,Community,73618,Funds Delegated to Schools from the LEA Exp,The Five Islands School,IOSEG School share July 2018 UIFSM Final payment 2017/18 UIFSM Provisional 2018/19 (7/12ths),2281761, 10/07/2018,"11,854.00","240,828.49","240,828.49"
600117,Five Island School,Childrens Services,Community,73618,Funds Delegated to Schools from the LEA Exp,The Five Islands School,IOSEG School share July 2018 UIFSM Final payment 2017/18 UIFSM Provisional 2018/19 (7/12ths),2281761, 10/07/2018,"11,271.00","240,828.49","240,828.49"
600117,Five Island School,Childrens Services,Community,47001,Grants & Conts to Other Bodies - Non Discretionary,The Five Islands School,IOSEG School share July 2018 UIFSM Final payment 2017/18 UIFSM Provisional 2018/19 (7/12ths),2281761, 10/07/2018,"217,703.49","240,828.49","240,828.49"
600117,Five Island School,Childrens Services,Community,43532,Professional Fees - Other,The Five Islands School,REDACTED,2282138, 07/08/2018,750,750,750
600117,Five Island School,Childrens Services,Community,43532,Professional Fees - Other,REDACTED,Governor Consultancy work for FIS -IEB June -July 2018,2286657, 17/07/2018,800,800,800
600117,Five Island School,Childrens Services,Community,47001,Grants & Conts to Other Bodies - Non Discretionary,The Five Islands School,IOSEG School share August 2018,2308708, 09/08/2018,"217,703.49","217,703.49","217,703.49"
600117,Five Island School,Childrens Services,Community,43532,Professional Fees - Other,REDACTED,IEB Governance Work FIS - INV 1420 1425,2275068, 10/07/2018,"1,600.00","1,600.00","1,600.00"
600117,Five Island School,Childrens Services,Community,22002,Electricity,British Gas Business,Electricity Charges for Carn Gwaval,2274476, 12/07/2018,500.59,500.59,600.7
600117,Five Island School,Childrens Services,Community,43532,Professional Fees - Other,REDACTED,Governor Consultancy work for FIS -IEB June -July 2018,2286649, 17/07/2018,800,800,800
600117,Five Island School,Childrens Services,Community,47001,Grants & Conts to Other Bodies - Non Discretionary,The Five Islands School,IOSEG School share September 2018/Q1 Pupil premium,2337875, 18/09/2018,"3,231.00","213,911.79","213,911.79"
600117,Five Island School,Childrens Services,Community,47001,Grants & Conts to Other Bodies - Non Discretionary,The Five Islands School,IOSEG School share September 2018/Q1 Pupil premium,2337875, 18/09/2018,"210,680.79","213,911.79","213,911.79"
600117,Five Island School,Childrens Services,Community,43532,Professional Fees - Other,REDACTED,IEB Governance Work FIS - INV 1420 1425,2275066, 10/07/2018,800,800,800
600117,Five Island School,Childrens Services,Community,43532,Professional Fees - Other,Tozers,"Tozers Professional Charges 
FIS - 26/6/18- C04601-0001",2284424, 12/07/2018,"1,500.00","1,500.00","1,800.00"
600120,Post 16 Travel and Accommodation Grant,Childrens Services,Community,47016,Accomodation Grants,REDACTED,2018-Post 16 Grant A2 ,2284396, 12/07/2018,"1,370.65","1,370.65","1,370.65"
600120,Post 16 Travel and Accommodation Grant,Childrens Services,Community,47016,Accomodation Grants,REDACTED,2018-Post 16 Grant A1 ,2311224, 14/08/2018,"1,705.33","1,705.33","1,705.33"
600120,Post 16 Travel and Accommodation Grant,Childrens Services,Community,47016,Accomodation Grants,REDACTED,2018-Post 16 Grant A1,2318983, 28/08/2018,852.66,852.66,852.66
600120,Post 16 Travel and Accommodation Grant,Childrens Services,Community,47016,Accomodation Grants,REDACTED,2018-Post 16 Grant A1 ,2326600, 04/09/2018,852.66,852.66,852.66
600120,Post 16 Travel and Accommodation Grant,Childrens Services,Community,47016,Accomodation Grants,REDACTED,2018-19 Post 16 Grant ,2338753, 18/09/2018,852.66,852.66,852.66
600120,Post 16 Travel and Accommodation Grant,Childrens Services,Community,47016,Accomodation Grants,REDACTED,2018 Post 16 Grant A2 ,2347371, 25/09/2018,852.66,852.66,852.66
600120,Post 16 Travel and Accommodation Grant,Childrens Services,Community,47016,Accomodation Grants,REDACTED,2018-Post 16 Grant A2 ,2347487, 25/09/2018,852.66,897.66,897.66
600120,Post 16 Travel and Accommodation Grant,Childrens Services,Community,47017,Travel Grant,REDACTED,"2018-Post 16 Grant A2,2018-Post 16 Grant T1",2347487, 25/09/2018,45,897.66,897.66
600120,Post 16 Travel and Accommodation Grant,Childrens Services,Community,47016,Accomodation Grants,REDACTED,2018-Post 16 Grant A2 ,2347521, 25/09/2018,852.66,852.66,852.66
600120,Post 16 Travel and Accommodation Grant,Childrens Services,Community,47016,Accomodation Grants,REDACTED,2018-Post 16 Grant A1 ,2313719, 21/08/2018,"1,705.33","1,705.33","1,705.33"
600120,Post 16 Travel and Accommodation Grant,Childrens Services,Community,47016,Accomodation Grants,REDACTED,2018- Post 16 Grant A1 ,2318260, 23/08/2018,852.66,852.66,852.66
600120,Post 16 Travel and Accommodation Grant,Childrens Services,Community,47016,Accomodation Grants,REDACTED,2018-Post 16 Grant A2 ,2347497, 25/09/2018,852.66,852.66,852.66
600120,Post 16 Travel and Accommodation Grant,Childrens Services,Community,47016,Accomodation Grants,REDACTED,2018-19 Post 16 Grant A1 ,2317900, 23/08/2018,852.66,852.66,852.66
600120,Post 16 Travel and Accommodation Grant,Childrens Services,Community,47016,Accomodation Grants,REDACTED,2018-19 Post 16 Grant A1 ,2337069, 13/09/2018,"1,705.33","1,705.33","1,705.33"
600120,Post 16 Travel and Accommodation Grant,Childrens Services,Community,47016,Accomodation Grants,REDACTED,2018-A2,2347501, 25/09/2018,852.66,852.66,852.66
600120,Post 16 Travel and Accommodation Grant,Childrens Services,Community,47016,Accomodation Grants,REDACTED,2018-Post 16 A1 ,2311240, 14/08/2018,852.66,852.66,852.66
600120,Post 16 Travel and Accommodation Grant,Childrens Services,Community,47016,Accomodation Grants,REDACTED,2018-Post 16 Grant A1,2313124, 16/08/2018,852.66,852.66,852.66
600120,Post 16 Travel and Accommodation Grant,Childrens Services,Community,47016,Accomodation Grants,REDACTED,2018- Post 16 Grant A1,2312818, 16/08/2018,"1,705.33","1,705.33","1,705.33"
600120,Post 16 Travel and Accommodation Grant,Childrens Services,Community,47016,Accomodation Grants,REDACTED,2018-Post 16 A1 ,2311223, 14/08/2018,"1,705.33","1,705.33","1,705.33"
600120,Post 16 Travel and Accommodation Grant,Childrens Services,Community,47016,Accomodation Grants,REDACTED,,2327516, 04/09/2018,"1,229.18","1,319.36","1,319.36"
600120,Post 16 Travel and Accommodation Grant,Childrens Services,Community,47017,Travel Grant,REDACTED,,2327516, 04/09/2018,90.18,"1,319.36","1,319.36"
600120,Post 16 Travel and Accommodation Grant,Childrens Services,Community,47016,Accomodation Grants,REDACTED,2018-19 Post 16 Grant A1,2328104, 04/09/2018,852.66,852.66,852.66
600120,Post 16 Travel and Accommodation Grant,Childrens Services,Community,47016,Accomodation Grants,REDACTED,2018-19 Post 16 Grant A2,2347511, 25/09/2018,852.66,852.66,852.66
600120,Post 16 Travel and Accommodation Grant,Childrens Services,Community,47016,Accomodation Grants,REDACTED,2018-Post 16 Grant A1 ,2313729, 21/08/2018,"1,705.33","1,705.33","1,705.33"
600120,Post 16 Travel and Accommodation Grant,Childrens Services,Community,47016,Accomodation Grants,REDACTED,2018-Post 16 Grant A2,2347384, 25/09/2018,852.66,852.66,852.66
600120,Post 16 Travel and Accommodation Grant,Childrens Services,Community,47016,Accomodation Grants,REDACTED,2018-Post 16 A1 ,2313138, 16/08/2018,852.66,852.66,852.66
600120,Post 16 Travel and Accommodation Grant,Childrens Services,Community,47016,Accomodation Grants,REDACTED,2018-19 Post 16 Grant A1 ,2319168, 28/08/2018,852.66,852.66,852.66
600120,Post 16 Travel and Accommodation Grant,Childrens Services,Community,47016,Accomodation Grants,REDACTED,2018-Post 16 Grant A1,2311235, 14/08/2018,852.66,852.66,852.66
600120,Post 16 Travel and Accommodation Grant,Childrens Services,Community,47016,Accomodation Grants,REDACTED,2018-Post 16 Grant A1 ,2311237, 14/08/2018,852.66,852.66,852.66
600120,Post 16 Travel and Accommodation Grant,Childrens Services,Community,47016,Accomodation Grants,REDACTED,2018-Post 16 Grant A1 ,2311225, 14/08/2018,852.66,852.66,852.66
600120,Post 16 Travel and Accommodation Grant,Childrens Services,Community,47016,Accomodation Grants,REDACTED,2018-19 Post 16  A1 ,2311226, 14/08/2018,852.66,852.66,852.66
600120,Post 16 Travel and Accommodation Grant,Childrens Services,Community,47016,Accomodation Grants,REDACTED,2018-Post 16 Grant A1 ,2311227, 14/08/2018,852.66,852.66,852.66
600120,Post 16 Travel and Accommodation Grant,Childrens Services,Community,47016,Accomodation Grants,REDACTED,2018-19 Post 16 Grant A1 ,2313189, 16/08/2018,"1,705.33","1,705.33","1,705.33"
600120,Post 16 Travel and Accommodation Grant,Childrens Services,Community,47016,Accomodation Grants,REDACTED,2018-Post 16 Grant ,2313783, 21/08/2018,852.66,852.66,852.66
600120,Post 16 Travel and Accommodation Grant,Childrens Services,Community,47016,Accomodation Grants,REDACTED,2018-19 Post 16 Grant A1 ,2328056, 04/09/2018,"1,705.33","1,705.33","1,705.33"
600120,Post 16 Travel and Accommodation Grant,Childrens Services,Community,47016,Accomodation Grants,REDACTED,2018-19 -Post 16 A1 ,2317885, 23/08/2018,852.66,852.66,852.66
600120,Post 16 Travel and Accommodation Grant,Childrens Services,Community,47016,Accomodation Grants,REDACTED,2018-Post 16 grant A1 ,2317910, 23/08/2018,852.66,852.66,852.66
600120,Post 16 Travel and Accommodation Grant,Childrens Services,Community,47016,Accomodation Grants,REDACTED,,2331137, 06/09/2018,852.66,852.66,852.66
600120,Post 16 Travel and Accommodation Grant,Childrens Services,Community,47016,Accomodation Grants,REDACTED,2018- Post 16 A2 ,2350486, 27/09/2018,780,802.5,802.5
600120,Post 16 Travel and Accommodation Grant,Childrens Services,Community,47017,Travel Grant,REDACTED,2018 Post 16 T1,2350486, 27/09/2018,22.5,802.5,802.5
600120,Post 16 Travel and Accommodation Grant,Childrens Services,Community,47016,Accomodation Grants,REDACTED,2018-Post 16 Grant A1 ,2313129, 16/08/2018,"1,705.33","1,705.33","1,705.33"
600120,Post 16 Travel and Accommodation Grant,Childrens Services,Community,47016,Accomodation Grants,REDACTED,2018-19 Post 16 Grant A1 ,2319098, 28/08/2018,852.66,852.66,852.66
600120,Post 16 Travel and Accommodation Grant,Childrens Services,Community,47016,Accomodation Grants,REDACTED,,2347374, 25/09/2018,852.66,897.66,897.66
600120,Post 16 Travel and Accommodation Grant,Childrens Services,Community,47017,Travel Grant,REDACTED,2018-Post 16 Grant A2 ,2347374, 25/09/2018,45,897.66,897.66
600120,Post 16 Travel and Accommodation Grant,Childrens Services,Community,47016,Accomodation Grants,REDACTED,2018-Post 16 Grant A2 ,2350679, 27/09/2018,852.66,852.66,852.66
600121,Home to School Transport,Childrens Services,Community,31603,Other Public Transport,REDACTED,2018 HOME TO SCHOOL TRANSPORT ,2275152, 03/07/2018,"1,016.38","1,016.38","1,016.38"
600121,Home to School Transport,Childrens Services,Community,31603,Other Public Transport,Tresco Estate,Home to School Boating August 2018-INV 51896,2331106, 13/09/2018,880,"1,400.00","1,400.00"
600122,Children Services Staff Costs,Childrens Services,Community,49002,Miscellaneous Expenditure,Tresco Estate,Tresco Boat Services Home to School Boating April - July 2018,2286502, 17/07/2018,"2,700.00","2,700.00","2,700.00"
600122,Children Services Staff Costs,Childrens Services,Community,49002,Miscellaneous Expenditure,Tresco Estate,"Tresco Boating EYS Access
April - End of July 2018",2286503, 17/07/2018,"3,524.25","3,524.25","3,524.25"
600122,Children Services Staff Costs,Childrens Services,Community,31603,Other Public Transport,Tresco Estate,Tresco Boat Services 1/5/18 (Interview),2254478, 10/07/2018,55,625,625
600122,Children Services Staff Costs,Childrens Services,Community,49031,Revenue transfer to schools - Supplies and Services,The Five Islands School,Inv IOS000533 FIS Staff recharge,2346374, 25/09/2018,"9,580.00","12,470.54","12,470.54"
600122,Children Services Staff Costs,Childrens Services,Community,49002,Miscellaneous Expenditure,Tresco Estate,Tresco Boat Services Home to School Boating April - July 2018,2308123, 09/08/2018,"3,530.00","3,530.00","3,530.00"
600122,Children Services Staff Costs,Childrens Services,Community,49031,Revenue transfer to schools - Supplies and Services,The Five Islands School,Inv IOS000532 FIS Staff recharge,2346279, 25/09/2018,"5,638.47","7,302.02","7,302.02"
600122,Children Services Staff Costs,Childrens Services,Community,43532,Professional Fees - Other,REDACTED,"IEB Consultancy Work 
9th August 2018",2336487, 13/09/2018,900,900,900
600122,Children Services Staff Costs,Childrens Services,Community,43532,Professional Fees - Other,REDACTED,"Pro Services for June July - 
IEB FIS Inv 9",2312867, 16/08/2018,"1,400.00","1,400.00","1,400.00"
600122,Children Services Staff Costs,Childrens Services,Community,43532,Professional Fees - Other,PCC Of The Isles Of Scilly,"IEB-FIS Work 
Sept 2017-March 2018",2331509, 06/09/2018,"2,450.00","2,450.00","2,450.00"
600122,Children Services Staff Costs,Childrens Services,Community,49002,Miscellaneous Expenditure,Tresco Estate,"Tresco Boating EYS Access
April - End of July 2018",2331103, 13/09/2018,"-3,296.50","3,296.50","3,296.50"
600122,Children Services Staff Costs,Childrens Services,Community,49002,Miscellaneous Expenditure,Tresco Estate,"Tresco Boating EYS Access
April - End of July 2018",2331103, 13/09/2018,"3,296.50","3,296.50","3,296.50"
600122,Children Services Staff Costs,Childrens Services,Community,49002,Miscellaneous Expenditure,Tresco Estate,Tresco Boat Services Home to School Boating April - July 2018,2331106, 13/09/2018,520,"1,400.00","1,400.00"
600122,Children Services Staff Costs,Childrens Services,Community,49002,Miscellaneous Expenditure,Tresco Estate,Tresco Boat Services Home to School Boating April - July 2018,2331106, 13/09/2018,"-1,400.00","1,400.00","1,400.00"
600122,Children Services Staff Costs,Childrens Services,Community,49002,Miscellaneous Expenditure,Tresco Estate,Tresco Boat Services Home to School Boating April - July 2018,2331106, 13/09/2018,"1,400.00","1,400.00","1,400.00"
600122,Children Services Staff Costs,Childrens Services,Community,49002,Miscellaneous Expenditure,Tresco Estate,"Tresco Boating EYS Access
April - End of July 2018",2308254, 30/08/2018,"4,001.75","4,001.75","4,001.75"
600123,High Need SEND,Childrens Services,Community,49031,Revenue transfer to schools - Supplies and Services,The Five Islands School,Inv IOS000533 FIS Staff recharge,2346374, 25/09/2018,"2,890.54","12,470.54","12,470.54"
600123,High Need SEND,Childrens Services,Community,49031,Revenue transfer to schools - Supplies and Services,The Five Islands School,Inv IOS000532 FIS Staff recharge,2346279, 25/09/2018,"1,663.55","7,302.02","7,302.02"
600123,High Need SEND,Childrens Services,Community,57053,RED,REDACTED,REDACTED,2346235, 25/09/2018,"54,788.00","54,788.00","54,788.00"
600126,School Development,Childrens Services,Community,43506,Professional Fees - Legal,Tozers,Legal Fees for Conversion of FIS to Academy Status.,2284388, 12/07/2018,"2,065.00","2,065.00","2,065.00"
600126,School Development,Childrens Services,Community,43532,Professional Fees - Other,REDACTED,"Pro Services IEB to FIS March-May
2018",2275071, 03/07/2018,"2,100.00","2,100.00","2,100.00"
600126,School Development,Childrens Services,Community,43506,Professional Fees - Legal,Tozers,Legal Fees for Conversion of FIS to Academy Status.,2284389, 12/07/2018,"2,550.60","2,550.60","2,550.60"
600126,School Development,Childrens Services,Community,43506,Professional Fees - Legal,Tozers,Legal Fees for Conversion of FIS to Academy Status.,2284390, 12/07/2018,"1,200.00","1,200.00","1,200.00"
600130,Children Social Care - Strategic,Childrens Social Care,Community,49002,Miscellaneous Expenditure,Sibleys Fuel & Marine Services,Fuel for CSC car,2284393, 02/08/2018,67.82,"3,468.45","3,788.47"
600131,Children Social Care - Commissioning,Childrens Social Care,Community,11601,Agency Costs,Eden Brown Synergy Ltd,Agency fees ,2328105, 04/09/2018,"1,285.75","1,285.75","1,542.90"
600131,Children Social Care - Commissioning,Childrens Social Care,Community,11601,Agency Costs,Eden Brown Synergy Ltd,Agency fees,2263295, 05/07/2018,"1,025.13","1,025.13","1,230.16"
600131,Children Social Care - Commissioning,Childrens Social Care,Community,46108,Board and Lodging,Scilly Hols Ltd,Accommodation for Agency Worker,2338009, 20/09/2018,"1,200.00","1,200.00","1,200.00"
600131,Children Social Care - Commissioning,Childrens Social Care,Community,45208,IT Software Support,Azeus UK Limited,AzeusCare Year 4 Annual Charge (01/09/2018 - 31/08/2019) for Adults and Children's Social Care.,2346357, 25/09/2018,"2,439.45","4,878.89","5,854.67"
600131,Children Social Care - Commissioning,Childrens Social Care,Community,11601,Agency Costs,Eden Brown Synergy Ltd,Agency fees,2291013, 24/07/2018,938.25,938.25,"1,125.90"
600131,Children Social Care - Commissioning,Childrens Social Care,Community,11601,Agency Costs,Eden Brown Synergy Ltd,Agency fees,2305395, 30/08/2018,"1,198.88","1,198.88","1,438.66"
600131,Children Social Care - Commissioning,Childrens Social Care,Community,11601,Agency Costs,Eden Brown Synergy Ltd,Agency fees,2328107, 04/09/2018,903.5,903.5,"1,084.20"
600131,Children Social Care - Commissioning,Childrens Social Care,Community,11601,Agency Costs,Eden Brown Synergy Ltd,Agency fees,2313634, 21/08/2018,"1,025.13","1,025.13","1,230.16"
600131,Children Social Care - Commissioning,Childrens Social Care,Community,11601,Agency Costs,Eden Brown Synergy Ltd,Agency fees,2286658, 17/07/2018,"1,251.00","1,251.00","1,501.20"
600131,Children Social Care - Commissioning,Childrens Social Care,Community,11601,Agency Costs,Eden Brown Synergy Ltd,Agency fees,2315496, 21/08/2018,"1,285.75","1,285.75","1,542.90"
600131,Children Social Care - Commissioning,Childrens Social Care,Community,11601,Agency Costs,Eden Brown Synergy Ltd,Agency fees,2275088, 19/07/2018,816.63,816.63,979.96
600131,Children Social Care - Commissioning,Childrens Social Care,Community,43571,Agency Fees,Eden Brown Synergy Ltd,Agency fees,2299495, 31/07/2018,"1,390.00","1,390.00","1,668.00"
600131,Children Social Care - Commissioning,Childrens Social Care,Community,11601,Agency Costs,Eden Brown Synergy Ltd,Agency fees,2337757, 13/09/2018,"1,025.13","1,025.13","1,230.16"
600131,Children Social Care - Commissioning,Childrens Social Care,Community,43571,Agency Fees,Eden Brown Synergy Ltd,Agency fees,2268472, 12/07/2018,"1,285.75","1,285.75","1,542.90"
600131,Children Social Care - Commissioning,Childrens Social Care,Community,46108,Board and Lodging,Scilly Hols Ltd,Accommodation for Agency Worker,2317511, 23/08/2018,"1,850.00","1,850.00","1,850.00"
600133,CSC Short Break Care,Childrens Social Care,Community,57014,Client Related Personal Needs - Private Contractors,REDACTED,Reimbursement of Short Breaks Care Budget for short break.,2318033, 23/08/2018,500,500,500
600133,CSC Short Break Care,Childrens Social Care,Community,57014,Client Related Personal Needs - Private Contractors,REDACTED,Direct Payment for Short Breaks Care Budget.,2335516, 11/09/2018,"1,000.00","1,000.00","1,000.00"
600140,Public Health,Public Health,Community,57083,Public Health Contracts - Private Contractors,Cornwall Council,Public Health Service for the Isles of Scilly 2018/19 Invoice 1,2303929, 02/08/2018,"58,000.00","58,000.00","58,000.00"
600200,Environmental Health & Food,Environmental Services,Strategic Development and Finance,49311,GSE Maintenance CAL equipment,Bruel & Kjaer UK Ltd,Investigation to corrupt software on Noise Meter,2323395, 30/08/2018,677.8,677.8,813.36
600200,Environmental Health & Food,Environmental Services,Strategic Development and Finance,43532,Professional Fees - Other,Cornwall Council,"Trading standards visit July 17th,18th & 19th 2018",2331134, 13/09/2018,"1,243.69","1,323.16","1,571.90"
600200,Environmental Health & Food,Environmental Services,Strategic Development and Finance,43532,Professional Fees - Other,Cornwall Council,"Trading standards visit July 17th,18th & 19th 2018",2331134, 13/09/2018,79.47,"1,323.16","1,571.90"
600200,Environmental Health & Food,Environmental Services,Strategic Development and Finance,43532,Professional Fees - Other,Cornwall Council,"Trading standards visit July 17th,18th & 19th 2018",2331134, 13/09/2018,"-1,323.16","1,323.16","1,571.90"
600200,Environmental Health & Food,Environmental Services,Strategic Development and Finance,43532,Professional Fees - Other,Cornwall Council,"Trading standards visit July 17th,18th & 19th 2018",2331134, 13/09/2018,"1,323.16","1,323.16","1,571.90"
600210,Adult Education,Learning and  Library,Strategic Development and Finance,31604,Student Travel Expenses - Public Transport,Tresco Estate,Special return boat fare ,2254478, 10/07/2018,230,625,625
600210,Adult Education,Learning and  Library,Strategic Development and Finance,31604,Student Travel Expenses - Public Transport,Tresco Estate,Special return boat fare,2254478, 10/07/2018,110,625,625
600210,Adult Education,Learning and  Library,Strategic Development and Finance,49002,Miscellaneous Expenditure,Truro And Penwith College,Performance Management training for Line managers delivered by Truro Penwith College,2305922, 07/08/2018,750,750,750
600210,Adult Education,Learning and  Library,Strategic Development and Finance,12301,Training,Democracy Counts Ltd,Elector8 software training,2290866, 24/07/2018,"2,550.00","2,550.00","3,060.00"
600210,Adult Education,Learning and  Library,Strategic Development and Finance,43576,Purchased Training (Not for Staff),Omni,"1 x EFAAW St Marys 11th June
2 x EFAAW Tresco 15th & 9th",2297412, 18/09/2018,850,850,"1,020.00"
600210,Adult Education,Learning and  Library,Strategic Development and Finance,43576,Purchased Training (Not for Staff),Omni,1 x Paediatric First Aid course 10th to 13th Sept 18,2338045, 18/09/2018,850,850,"1,020.00"
600210,Adult Education,Learning and  Library,Strategic Development and Finance,43576,Purchased Training (Not for Staff),Omni,"1 x EFAAW St Marys 11th June
2 x EFAAW Tresco 15th & 9th",2280831, 10/07/2018,850,850,"1,020.00"
600210,Adult Education,Learning and  Library,Strategic Development and Finance,43576,Purchased Training (Not for Staff),Shield Environmental Services Ltd,Asbestos Course for community and CIOS staff,2296214, 02/08/2018,"1,000.00","1,000.00","1,200.00"
600210,Adult Education,Learning and  Library,Strategic Development and Finance,12301,Training,Essential Training (SW) Ltd,Delivery of Moving and Handling Practical course for Park House staff 26th & 27th July,2329009, 04/09/2018,740,740,888
600210,Adult Education,Learning and  Library,Strategic Development and Finance,12301,Training,Yorke Walton Ltd,"Reflective Supervision Training for Adult Social Care Staff 9th/10th July, 9th August & 5th/6th Sept.",2318962, 23/08/2018,600,600,720
600210,Adult Education,Learning and  Library,Strategic Development and Finance,12301,Training,Yorke Walton Ltd,"Reflective Supervision Training for Adult Social Care Staff 9th/10th July, 9th August & 5th/6th Sept.",2342934, 20/09/2018,680,680,816
600210,Adult Education,Learning and  Library,Strategic Development and Finance,12301,Training,FreeBird Associates Ltd,Adult Safeguarding Train the Trainer 2 day course 19th & 20th July,2306884, 07/08/2018,500,500,500
600210,Adult Education,Learning and  Library,Strategic Development and Finance,12301,Training,Association of Electoral Administrators,Elections training (AEA Certificate),2313793, 21/08/2018,"1,585.00","1,585.00","1,902.00"
600210,Adult Education,Learning and  Library,Strategic Development and Finance,12301,Training,Yorke Walton Ltd,"Reflective Supervision Training for Adult Social Care Staff 9th/10th July, 9th August & 5th/6th Sept.",2289048, 19/07/2018,600,600,720
600210,Adult Education,Learning and  Library,Strategic Development and Finance,31503,Taxi and Minibus,Toot's Taxis,Taxi from Quay to Nancherrow for Tutor trainer,2305416, 16/08/2018,8,519.25,519.25
600211,Library Services,Learning and  Library,Strategic Development and Finance,49002,Miscellaneous Expenditure,REDACTED,REDACTED,2335674, 11/09/2018,"95,000.00","95,000.00","114,000.00"
600212,Customer Hub,Learning and  Library,Strategic Development and Finance,43002,Stationery and Consumables,Officesmart Sw Ltd,Office Smart Stationary order,2329748, 06/09/2018,532.86,532.86,639.43
600220,IFCA,Inshore Fisheries and Conservation Authoirutues,Strategic Development and Finance,12601,Professional subscriptions,Association Of Ifcas,(1/8 of the costs) Membership contribution for Science Direct,2317917, 30/08/2018,"1,201.78","1,201.78","1,442.14"
600220,IFCA,Inshore Fisheries and Conservation Authoirutues,Strategic Development and Finance,31505,Boat Hire,Survitec Service & Distribution Ltd,Life Raft,2303909, 02/08/2018,536.12,536.12,643.34
600240,Social Housing,Housing Rented Property and Homelessness,Strategic Development and Finance,46118,Freight Costs,Richard Hand Haulage,Storage of a 20' container @ 45 per week,2343022, 25/09/2018,-106.6,639.6,746.2
600240,Social Housing,Housing Rented Property and Homelessness,Strategic Development and Finance,46118,Freight Costs,Richard Hand Haulage,Storage of a 20' container @ 45 per week,2343022, 25/09/2018,485,639.6,746.2
600240,Social Housing,Housing Rented Property and Homelessness,Strategic Development and Finance,46118,Freight Costs,Richard Hand Haulage,Storage of a 20' container @ 45 per week,2343022, 25/09/2018,-533,639.6,746.2
600240,Social Housing,Housing Rented Property and Homelessness,Strategic Development and Finance,46118,Freight Costs,Richard Hand Haulage,Storage of a 20' container @ 45 per week,2343022, 25/09/2018,533,639.6,746.2
600240,Social Housing,Housing Rented Property and Homelessness,Strategic Development and Finance,46118,Freight Costs,Richard Hand Haulage,Storage of a 20' container @ 45 per week,2343022, 25/09/2018,106.6,639.6,746.2
600240,Social Housing,Housing Rented Property and Homelessness,Strategic Development and Finance,49002,Miscellaneous Expenditure,Richard Hand Haulage,Waste and cooker removal,2343022, 25/09/2018,106.6,639.6,746.2
600240,Social Housing,Housing Rented Property and Homelessness,Strategic Development and Finance,49002,Miscellaneous Expenditure,Richard Hand Haulage,Waste and cooker removal,2343022, 25/09/2018,48,639.6,746.2
600240,Social Housing,Housing Rented Property and Homelessness,Strategic Development and Finance,49002,Miscellaneous Expenditure,Richard Hand Haulage,Waste and cooker removal,2343022, 25/09/2018,-154.6,639.6,746.2
600240,Social Housing,Housing Rented Property and Homelessness,Strategic Development and Finance,49002,Miscellaneous Expenditure,Richard Hand Haulage,Waste and cooker removal,2343022, 25/09/2018,154.6,639.6,746.2
600240,Social Housing,Housing Rented Property and Homelessness,Strategic Development and Finance,43506,Professional Fees - Legal,Cornwall Council,Checking to see where we are on file.,2270107, 12/07/2018,48,"1,096.26","1,243.51"
600240,Social Housing,Housing Rented Property and Homelessness,Strategic Development and Finance,43506,Professional Fees - Legal,Cornwall Council,Checking to see where we are on file.,2270107, 12/07/2018,-48.5,"1,096.26","1,243.51"
600240,Social Housing,Housing Rented Property and Homelessness,Strategic Development and Finance,43506,Professional Fees - Legal,Cornwall Council,Checking to see where we are on file.,2270107, 12/07/2018,48.5,"1,096.26","1,243.51"
600240,Social Housing,Housing Rented Property and Homelessness,Strategic Development and Finance,43506,Professional Fees - Legal,Cornwall Council,Checking to see where we are on file.,2270107, 12/07/2018,-48,"1,096.26","1,243.51"
600240,Social Housing,Housing Rented Property and Homelessness,Strategic Development and Finance,43506,Professional Fees - Legal,Cornwall Council,Checking to see where we are on file.,2270107, 12/07/2018,48,"1,096.26","1,243.51"
600240,Social Housing,Housing Rented Property and Homelessness,Strategic Development and Finance,49002,Miscellaneous Expenditure,Natural Generation Ltd,Use of already erected scaffold for  alternative works.,2346362, 27/09/2018,"1,600.00","1,600.00","1,920.00"
600240,Social Housing,Housing Rented Property and Homelessness,Strategic Development and Finance,21104,R&M - External Decoration - Planned,Wright Construction,Crack Filling on shared Chimney,2286512, 19/07/2018,500,500,600
600240,Social Housing,Housing Rented Property and Homelessness,Strategic Development and Finance,21201,R&M - Buildings - Reactive,Natural Generation Ltd,Replacement mixed shower and fitting as part of bathroom works.,2295176, 26/07/2018,700,700,840
600240,Social Housing,Housing Rented Property and Homelessness,Strategic Development and Finance,43506,Professional Fees - Legal,Ward Williams Associates,Prof fees for Refurbishment,2274446, 12/07/2018,527.5,527.5,633
600240,Social Housing,Housing Rented Property and Homelessness,Strategic Development and Finance,73845,R&M - Asbestos - Reactive [CHL],Allium Environmental Ltd,Complete asbestos survey - required so we can refurb the property,2328973, 18/09/2018,630,630,756
600240,Social Housing,Housing Rented Property and Homelessness,Strategic Development and Finance,21201,R&M - Buildings - Reactive,Blackwell Building Services (IoS) Ltd,Replacement Fence to a minimum height of 1.2m,2286812, 07/08/2018,"1,450.08","1,450.08","1,740.10"
600240,Social Housing,Housing Rented Property and Homelessness,Strategic Development and Finance,21201,R&M - Buildings - Reactive,Blackwell Building Services (IoS) Ltd,Replacement Fence to a minimum height of 1.2m,2286812, 07/08/2018,"1,450.08","1,450.08","1,740.10"
600240,Social Housing,Housing Rented Property and Homelessness,Strategic Development and Finance,21201,R&M - Buildings - Reactive,Blackwell Building Services (IoS) Ltd,Replacement Fence to a minimum height of 1.2m,2286812, 07/08/2018,"-1,450.08","1,450.08","1,740.10"
600241,Private Housing,Housing Rented Property and Homelessness,Strategic Development and Finance,49002,Miscellaneous Expenditure,Cornwall Council,Legal Assistance wit hRTB,2332153, 27/09/2018,950,"1,663.00","1,853.00"
600241,Private Housing,Housing Rented Property and Homelessness,Strategic Development and Finance,49002,Miscellaneous Expenditure,Cornwall Council,Legal Assistance wit hRTB,2332153, 27/09/2018,713,"1,663.00","1,853.00"
600241,Private Housing,Housing Rented Property and Homelessness,Strategic Development and Finance,49002,Miscellaneous Expenditure,Cornwall Council,Legal Assistance wit hRTB,2332153, 27/09/2018,"-1,663.00","1,663.00","1,853.00"
600241,Private Housing,Housing Rented Property and Homelessness,Strategic Development and Finance,49002,Miscellaneous Expenditure,Cornwall Council,Legal Assistance wit hRTB,2332153, 27/09/2018,"1,663.00","1,663.00","1,853.00"
600242,Housing Staffing,Housing Rented Property and Homelessness,Strategic Development and Finance,49002,Miscellaneous Expenditure,Jewson Ltd,Fire boarding,2351983, 27/09/2018,848.58,848.58,"1,018.30"
600242,Housing Staffing,Housing Rented Property and Homelessness,Strategic Development and Finance,12301,Training,Chartered Institute Of Housing,"CIH Level 5 course
Blended learning starting in October 2018.",2305413, 07/08/2018,"2,778.00","2,778.00","2,778.00"
600242,Housing Staffing,Housing Rented Property and Homelessness,Strategic Development and Finance,49002,Miscellaneous Expenditure,Jewson Ltd,Fortics Water Tanks,2294244, 26/07/2018,537.01,537.01,644.42
600250,Strategic Development SLT,Strategic Development SLT,Strategic Development and Finance,89202,Legal Fees & Expenses,Ashfords,"Remainder of a delivery Partner Agreement between the IOS Council & Hitachi Europe Ltd. in relation to the Go EV Smart Project,.",2280788, 26/07/2018,"3,423.00","3,423.00","4,107.60"
600250,Strategic Development SLT,Strategic Development SLT,Strategic Development and Finance,89202,Legal Fees & Expenses,Ashfords,"Remainder of a delivery Partner Agreement between the IOS Council & Hitachi Europe Ltd. in relation to the Go EV Smart Project,.",2333725, 27/09/2018,"1,336.00","1,336.00","1,603.20"
600250,Strategic Development SLT,Strategic Development SLT,Strategic Development and Finance,89202,Legal Fees & Expenses,Ashfords,"Remainder of a delivery Partner Agreement between the IOS Council & Hitachi Europe Ltd. in relation to the Go EV Smart Project,.",2333725, 27/09/2018,"-1,603.20","1,336.00","1,603.20"
600250,Strategic Development SLT,Strategic Development SLT,Strategic Development and Finance,89202,Legal Fees & Expenses,Ashfords,"Remainder of a delivery Partner Agreement between the IOS Council & Hitachi Europe Ltd. in relation to the Go EV Smart Project,.",2333725, 27/09/2018,"1,603.20","1,336.00","1,603.20"
600260,Voucher Scheme,Strategic Development Management,Democrative and Corporate Governance,47013,Grants & Conts to Other Bodies - Discretionary,Stylish Designs Ltd,Project 148: Claim 3 grant payment,2335484, 18/09/2018,"2,417.94","2,417.94","2,417.94"
600260,Voucher Scheme,Strategic Development Management,Democrative and Corporate Governance,47013,Grants & Conts to Other Bodies - Discretionary,REDACTED,PROJECT 27: CLAIM 6 GRANT PAYMENT,2294884, 31/07/2018,"5,000.91","5,000.91","5,000.91"
600260,Voucher Scheme,Strategic Development Management,Democrative and Corporate Governance,47013,Grants & Conts to Other Bodies - Discretionary,St Marys Bike Hire,Project 90: Claim 6 grant payment,2337773, 18/09/2018,786.54,786.54,786.54
600260,Voucher Scheme,Strategic Development Management,Democrative and Corporate Governance,47013,Grants & Conts to Other Bodies - Discretionary,Tresco Estate,Project 143: Claim 2 grant payment,2280736, 10/07/2018,"5,645.01","5,645.01","5,645.01"
600260,Voucher Scheme,Strategic Development Management,Democrative and Corporate Governance,47013,Grants & Conts to Other Bodies - Discretionary,St Agnes Boating,PROJECT 15: FINAL GRANT PAYMENT,2346198, 25/09/2018,"1,250.93","1,250.93","1,250.93"
600260,Voucher Scheme,Strategic Development Management,Democrative and Corporate Governance,49002,Miscellaneous Expenditure,Falcon Boating Ltd,Return boat trip to St Martins,2275122, 17/07/2018,78,746,746
600260,Voucher Scheme,Strategic Development Management,Democrative and Corporate Governance,47013,Grants & Conts to Other Bodies - Discretionary,REDACTED,Project 170: Claim 1 grant payment,2303850, 31/07/2018,"2,063.64","2,063.64","2,063.64"
600260,Voucher Scheme,Strategic Development Management,Democrative and Corporate Governance,47013,Grants & Conts to Other Bodies - Discretionary,REDACTED,,2311309, 14/08/2018,"5,885.62","5,885.62","5,885.62"
600260,Voucher Scheme,Strategic Development Management,Democrative and Corporate Governance,47013,Grants & Conts to Other Bodies - Discretionary,REDACTED,Project 153: Claim 2 grant payment,2335488, 18/09/2018,"8,975.34","8,975.34","8,975.34"
600260,Voucher Scheme,Strategic Development Management,Democrative and Corporate Governance,57013,Landlord Incentive Scheme - Private Contractors,Community Venture (Smart Islands Project),Project 94: Claim 4 grant payment,2336499, 18/09/2018,"18,467.16","18,467.16","18,467.16"
600260,Voucher Scheme,Strategic Development Management,Democrative and Corporate Governance,47013,Grants & Conts to Other Bodies - Discretionary,Community Venture (Smart Islands Project),Project 94: Claim 3 grant payment,2279909, 05/07/2018,"18,197.78","18,197.78","18,197.78"
600260,Voucher Scheme,Strategic Development Management,Democrative and Corporate Governance,47013,Grants & Conts to Other Bodies - Discretionary,St Martin's Watersports,PROJECT 165: CLAIM 1 GRANT PAYMENT,2284499, 12/07/2018,"7,093.06","7,093.06","7,093.06"
600260,Voucher Scheme,Strategic Development Management,Democrative and Corporate Governance,47013,Grants & Conts to Other Bodies - Discretionary,Tresco Estate,PROJECT 143: CLAIM 3 GRANT PAYMENT,2346205, 25/09/2018,"6,878.99","6,878.99","6,878.99"
600260,Voucher Scheme,Strategic Development Management,Democrative and Corporate Governance,47013,Grants & Conts to Other Bodies - Discretionary,St Martin's Watersports,Project 165: Claim 2 grant payment,2337193, 18/09/2018,697.24,697.24,697.24
600260,Voucher Scheme,Strategic Development Management,Democrative and Corporate Governance,47013,Grants & Conts to Other Bodies - Discretionary,REDACTED,PROJECT 120: CLAIM 2 GRANT PAYMENT,2346260, 25/09/2018,"10,726.58","10,726.58","10,726.58"
600260,Voucher Scheme,Strategic Development Management,Democrative and Corporate Governance,47013,Grants & Conts to Other Bodies - Discretionary,The Sailing Centre Ios Ltd,Project 51c: Claim 1 grant payment,2313246, 16/08/2018,"1,061.55","1,061.55","1,061.55"
600303,Corporate Management,Democrative and Corporate Governance,Democrative and Corporate Governance,49002,Miscellaneous Expenditure,Tresco Estate,Boats for the St Martin's public meeting,2254478, 10/07/2018,120,625,625
600303,Corporate Management,Democrative and Corporate Governance,Democrative and Corporate Governance,49002,Miscellaneous Expenditure,South West Councils,Entry to SW Challenge,2286743, 24/07/2018,"1,500.00","1,500.00","1,800.00"
600303,Corporate Management,Democrative and Corporate Governance,Democrative and Corporate Governance,45208,IT Software Support,CIM Services,Annual support for 15 User Sage 200 Financials to run from 1 July 2018,2317884, 23/08/2018,"4,327.43","4,327.43","5,192.92"
600303,Corporate Management,Democrative and Corporate Governance,Democrative and Corporate Governance,43548,External Audit Charges,Grant Thornton Ltd,Fee variation for Audit of 2015-16 as agreed with PSAA,2343173, 20/09/2018,"60,681.00","60,681.00","72,817.20"
600303,Corporate Management,Democrative and Corporate Governance,Democrative and Corporate Governance,31602,Air Travel,Cornwall Council,Travel Cost,2270107, 12/07/2018,357,"1,096.26","1,243.51"
600303,Corporate Management,Democrative and Corporate Governance,Democrative and Corporate Governance,31602,Air Travel,Cornwall Council,Travel Cost,2270107, 12/07/2018,-360,"1,096.26","1,243.51"
600303,Corporate Management,Democrative and Corporate Governance,Democrative and Corporate Governance,31602,Air Travel,Cornwall Council,Travel Cost,2270107, 12/07/2018,16.26,"1,096.26","1,243.51"
600303,Corporate Management,Democrative and Corporate Governance,Democrative and Corporate Governance,31602,Air Travel,Cornwall Council,Travel Cost,2270107, 12/07/2018,360,"1,096.26","1,243.51"
600303,Corporate Management,Democrative and Corporate Governance,Democrative and Corporate Governance,31602,Air Travel,Cornwall Council,Travel Cost,2270107, 12/07/2018,-373.26,"1,096.26","1,243.51"
600303,Corporate Management,Democrative and Corporate Governance,Democrative and Corporate Governance,31602,Air Travel,Cornwall Council,Travel Cost,2270107, 12/07/2018,373.26,"1,096.26","1,243.51"
600304,Legal Services,Democrative and Corporate Governance,Democrative and Corporate Governance,49002,Miscellaneous Expenditure,Cornwall Council,"Cornwall Council - Legal department
Corporate Governance Charges for May 2018",2292111, 24/07/2018,"1,356.80","1,356.80","1,628.16"
600306,Elections,Democrative and Corporate Governance,Democrative and Corporate Governance,49002,Miscellaneous Expenditure,Vodafone re. Cable & Wireless UK,Quarterly Vodafone invoice 1 April - 30 June 2018,2297279, 31/07/2018,"4,716.31","4,716.31","5,659.57"
600306,Elections,Democrative and Corporate Governance,Democrative and Corporate Governance,49002,Miscellaneous Expenditure,West Communications Ltd,"pull back, installation and termination of fibre between Moorwell and Sports Hall, Isles of Scilly",2271564, 05/07/2018,"1,564.00","1,564.00","1,876.80"
600306,Elections,Democrative and Corporate Governance,Democrative and Corporate Governance,41301,Books and Publications,Thomson Reuters,Annual subscription to Schofield's Election Law,2336884, 27/09/2018,720,720,864
600308,Registration Services,Democrative and Corporate Governance,Democrative and Corporate Governance,31603,Other Public Transport,Falcon Boating Ltd,Transport for Registration on the 18th August 2018,2332199, 20/09/2018,104,988,988
600310,Active Scilly Staffing Costs,Active Scilly,Democrative and Corporate Governance,49002,Miscellaneous Expenditure,Sibleys Fuel & Marine Services,Oil for pool,2284393, 02/08/2018,520.8,"3,468.45","3,788.47"
600312,Sports Hall,Active Scilly,Democrative and Corporate Governance,22003,Gas,Sibleys Fuel & Marine Services,Gas bottles x6,2284393, 02/08/2018,408,"3,468.45","3,788.47"
600313,Normandy Swimming Pool,Active Scilly,Democrative and Corporate Governance,43532,Professional Fees - Other,REDACTED,swimming teaching Summer Term 2018,2294408, 26/07/2018,927.36,927.36,927.36
600313,Normandy Swimming Pool,Active Scilly,Democrative and Corporate Governance,22002,Electricity,British Gas Business,29/4 - 28/5,2318050, 24/08/2018,739.41,739.41,887.29
600313,Normandy Swimming Pool,Active Scilly,Democrative and Corporate Governance,22002,Electricity,British Gas Business,29/3 - 28/4,2318089, 24/08/2018,796.74,796.74,956.08
600313,Normandy Swimming Pool,Active Scilly,Democrative and Corporate Governance,22002,Electricity,British Gas Business,Electricity Charges,2326803, 31/08/2018,540.5,540.5,648.6
600313,Normandy Swimming Pool,Active Scilly,Democrative and Corporate Governance,49002,Miscellaneous Expenditure,J P Lennard Ltd,swimming pool order po ref only,2294939, 31/07/2018,519.2,519.2,623.04
600321,Finance,Support Services,Strategic Development and Finance,43606,Financial Support,Cornwall Council,Finance System Implementation,2285807, 19/07/2018,"640,000.00","799,473.86","959,368.63"
600321,Finance,Support Services,Strategic Development and Finance,43606,Financial Support,Cornwall Council,2017/18 Finance Support Charge,2285807, 19/07/2018,"159,473.86","799,473.86","959,368.63"
600321,Finance,Support Services,Strategic Development and Finance,46118,Freight Costs,Isles Of Scilly Steamship Co,IOSS Group Freight for July 2018,2333669, 13/09/2018,"8,991.59","8,991.59","10,789.90"
600321,Finance,Support Services,Strategic Development and Finance,46118,Freight Costs,Isles Of Scilly Steamship Co,IOSS GROUP FREIGHT for JUNE,2290994, 31/07/2018,"4,744.86","4,744.86","5,693.87"
600321,Finance,Support Services,Strategic Development and Finance,45103,Line Rental & Installation,The Phone Co-Op Ltd,General Department,2289862, 07/08/2018,"1,068.18","1,068.18","1,281.81"
600321,Finance,Support Services,Strategic Development and Finance,49002,Miscellaneous Expenditure,Cornwall Council,Finance Charge April 17,2285809, 17/07/2018,"13,821.80","13,821.80","16,586.16"
600321,Finance,Support Services,Strategic Development and Finance,46118,Freight Costs,Isles Of Scilly Steamship Co,General CIOS Group Freight for the Month of August 2018.,2343895, 27/09/2018,"8,624.55","8,624.55","10,349.45"
600323,Human Resources,Support Services,Strategic Development and Finance,11422,REDACTED,REDACTED,REDACTED,2289920, 19/07/2018,171.35,514.05,514.05
600323,Human Resources,Support Services,Strategic Development and Finance,11422,REDACTED,REDACTED,REDACTED,2289920, 19/07/2018,171.35,514.05,514.05
600323,Human Resources,Support Services,Strategic Development and Finance,11422,REDACTED,REDACTED,REDACTED,2289920, 19/07/2018,171.35,514.05,514.05
600324,Information Technology,Support Services,Strategic Development and Finance,49002,Miscellaneous Expenditure,Richard Hand Haulage,"Collection of computer equipment from Wesleyan Chapel, Town Hall, Carn Gwaval and deposit at Shah, Carn Thomas, St Mary's.

Collection of old Copiers (possibly 10) from various sites and deposit at Moorwell Waste site under WEEE scheme",2261750, 12/07/2018,524.36,524.36,629.23
600324,Information Technology,Support Services,Strategic Development and Finance,43001,Photocopying & Printing,Canon (Uk) Limited,INV 401966137 22/11/17 - 21/2/18,2206697, 21/09/2018,626.31,626.31,751.57
600324,Information Technology,Support Services,Strategic Development and Finance,43001,Photocopying & Printing,Canon (Uk) Limited,INV 401961594  1/11/17-31/1/18,2206681, 21/09/2018,889.45,889.45,"1,067.34"
600400,Council Tax Account,Council Tax Account,Strategic Development and Finance,65003,Police Authority Precept,Devon & Cornwall Police Authority,JULY ISLES OF SCILLY PRECEPT,2282189, 10/07/2018,"20,794.00","20,794.00","20,794.00"
600400,Council Tax Account,Council Tax Account,Strategic Development and Finance,65003,Police Authority Precept,Devon & Cornwall Police Authority,AUGUST ISLES OF SCILLY PRECEPT,2309743, 14/08/2018,"20,794.00","20,794.00","20,794.00"
600400,Council Tax Account,Council Tax Account,Strategic Development and Finance,65003,Police Authority Precept,Devon & Cornwall Police Authority,SEPTEMBER ISLES OF SCILLY PRECEPT,2329733, 27/09/2018,"20,794.00","20,794.00","20,794.00"
690001,Services to Our Community Directorate,Services to Our Community Directorate,Community,89004,Acquisition Costs - Vehicles & Plant,Angloco Ltd,Angloco Ltd- Supply of fire appliance for Cat 3 Airport- St Mary's airport Chassis Stage,2317385, 23/08/2018,"96,500.00","96,500.00","115,800.00"
690001,Services to Our Community Directorate,Services to Our Community Directorate,Community,89207,Consultancy Costs,Milestone Environmental Limited,Lwr Moors hydrological Study 16_1002g,2281664, 10/07/2018,"4,169.50","4,169.50","5,003.40"
690001,Services to Our Community Directorate,Services to Our Community Directorate,Community,89207,Consultancy Costs,Stride Treglown,"Stride Treglown 
CG School Project Inv18922",2284730, 26/07/2018,234,"5,638.20","6,719.04"
690001,Services to Our Community Directorate,Services to Our Community Directorate,Community,89207,Consultancy Costs,Stride Treglown,"Stride Treglown 
CG School Project Inv18922",2284730, 26/07/2018,"5,404.20","5,638.20","6,719.04"
690001,Services to Our Community Directorate,Services to Our Community Directorate,Community,89207,Consultancy Costs,Stride Treglown,"Stride Treglown 
CG School Project Inv18922",2284730, 26/07/2018,"-5,638.20","5,638.20","6,719.04"
690001,Services to Our Community Directorate,Services to Our Community Directorate,Community,89207,Consultancy Costs,Stride Treglown,"Stride Treglown 
CG School Project Inv18922",2284730, 26/07/2018,"5,638.20","5,638.20","6,719.04"
690001,Services to Our Community Directorate,Services to Our Community Directorate,Community,89103,New Construction Works,Blackwell Building Services (IoS) Ltd,Carn Gwaval Capital Works,2336484, 18/09/2018,"42,400.17","42,400.17","50,880.20"
690001,Services to Our Community Directorate,Services to Our Community Directorate,Community,89201,Planning & Building Reg Fees,Stride Treglown,"Stride Treglown
May 2018- 18760 
Pro 150457",2308673, 09/08/2018,"4,734.40","4,734.40","5,681.28"
690001,Services to Our Community Directorate,Services to Our Community Directorate,Community,89201,Planning & Building Reg Fees,Stride Treglown,"Stride Treglown Inv 19073 July 18
Pro 150457 CG Sch",2299586, 16/08/2018,"1,530.00","1,530.00","1,836.00"
690004,Democratic & Corporate Directorate,Democratic and Corporate Directorate,Corporate,49002,Miscellaneous Expenditure,Digital Navigators,Data destruction for desktop and laptops,2279217, 03/07/2018,"2,928.00","2,928.00","2,928.00"
